Cogmind - Beta 12 X6 @@@ ROGUE MODE // 2023.02.23 @ 20:10:56 Player: LU-1G1 Result: Escaped singularity! Performance ------------- Evolutions (9) 4500 Regions Visited (41) 8200 Robots Destroyed (363) 1815 Value Destroyed (13530) 13530 Prototype IDs (308) 6160 Alien Tech Used (6) 1200 Bonus (42831) 42831 TOTAL SCORE: 78236 Bonus ------- High Alert Combat Kills 495 Follower Combat Kills 1484 Entered Garrisons 200 Network Hubs Disabled 400 Aligned with FarCom 300 Met Data Miner 300 Met Imprinter 300 Destroyed Z-Imprinter 1000 Met Zhirov 300 Built Enhanced Grunts 300 A7 Reached Mainframe 300 Met R17 at Cetus 500 Found Hidden Lab 3000 Destroyed MAIN.C Guards 500 Met MAIN.C 5000 Destroyed MAIN.C Shell 5000 Destroyed MAIN.C 10000 Met Architect 300 Destroyed A8 300 Destroyed A6 400 Destroyed A5 500 Destroyed Architect 15000 Win 3000 Friendly Fire -6048 Cogmind --------- Core Integrity 814/1600 Matter 285/300 Energy 399/620 System Corruption 2% Temperature Cool (32) Movement Hovering (34) Location Near Former Tau Ceti IV Parts ------- > --- POWER (3) -------- Graviton Reactor Zero-point Reactor Zero-point Reactor > --- PROPULSION (8) --- Combat Antigrav System Combat Linear Gravjet Combat Linear Gravjet Combat Linear Gravjet Combat Linear Gravjet Combat Linear Gravjet Combat Linear Gravjet Combat Linear Gravjet > --- UTILITY (13) ----- Large Storage Unit Experimental Melee Analysis Suite Experimental Melee Analysis Suite Experimental Melee Analysis Suite Experimental Core Analyzer Femtoactuators Advanced Force Booster Experimental Phase Shifter Experimental Weapon Shielding Experimental Powered Armor Experimental Powered Armor Advanced Force Field > --- WEAPON (2) ------- Longsword +1 Plasma Lance > --- INVENTORY (15) --- Graviton Reactor Combat Antigrav System Experimental Heat Sink Experimental Energy Well (0) Experimental Energy Well (600) Experimental Energy Well (600) Advanced Phase Shifter Experimental Powered Armor Experimental Powered Armor Vibroblade Kinetic Spear Peak State ------------ > --- POWER ------------ Zero-point Reactor Zero-point Reactor Zero-point Reactor > --- PROPULSION ------- Combat Linear Gravjet Combat Linear Gravjet Combat Linear Gravjet Combat Linear Gravjet Combat Linear Gravjet Combat Linear Gravjet Combat Linear Gravjet Combat Linear Gravjet > --- UTILITY ---------- Experimental Cooling System High-capacity Storage Unit Experimental Energy Well Experimental Terrain Scan Processor Experimental Melee Analysis Suite Experimental Melee Analysis Suite Experimental Melee Analysis Suite Experimental Core Analyzer Femtoactuators Advanced Force Booster Advanced Force Booster Experimental Force Field Experimental System Purifier > --- WEAPON ----------- Longsword +1 Plasma Lance > --- INVENTORY -------- Zero-point Reactor Zero-point Reactor Singularity Reactor Cooled Antigrav System Advanced Energy Well Experimental Energy Well Experimental Energy Well Advanced Quantum Shading Machine Experimental Terrain Scanner Advanced Force Field Advanced Force Field Transdimensional Reconstructor HERF Cannon HERF Cannon Enhanced Nova Cannon Enhanced Nova Cannon Warp Cannon Warp Cannon [Rating: 244] Favorites ----------- Power Zero-point Reactor Engine Improved Ion Engine Power Core Cooled Fission Core Reactor Zero-point Reactor Propulsion Combat Linear Gravjet Treads Light Treads Hover Unit Combat Linear Gravjet Flight Unit Cooled Cesium-ion Thruster Utility Advanced Hacking Suite Device Advanced Force Booster Storage High-capacity Storage Unit Processor Experimental Melee Analysis Suite Hackware Advanced Hacking Suite Protection Layered Light Armor Plating Weapon Longsword +1 Energy Gun Medium Laser Energy Cannon Advanced Beam Cannon Ballistic Gun Assault Rifle Ballistic Cannon Light Cannon Launcher Rocket Launcher Special Weapon Plasma Cutter Slashing Weapon Longsword +1 Piercing Weapon Plasma Lance Special Melee Weapon Datajack Build | -11 -10 -10 -9 -9 -9 -8 -8 -8 -8 -7 -7 -7 -7 -6 -6 -6 -6 -6 -6 -5 -5 -5 -5 -5 -5 -5 -4 -4 -4 -4 -4 -4 -4 -4 -3 -3 -3 -2 -1 -1 -1 ------- Run | Jun Mat Min Mat Min Exi Min Mat Gar Mat Fac Low Low Dat Pro Fac Low Low Zio Dee Pro Fac Was Fac Upp Upp Zhi Pro Fac Was Fac Ext Cet Arc Hub Res Arm Lab Res Acc Com Ac0 Slots Evolved 18 | . . . 2 . . . 2 . . 2 . . . . 2 . . . . . 2 . . . . . . 2 . . . . . . 2 . . 2 2 . . Power 1 | . . . . . . . . . . . . . . . . . . . . . . . . . . . . . . . . . . . 1 . . . . . . Propulsion 6 | . . . 2 . . . . . . . . . . . . . . . . . . . . . . . . 1 . . . . . . 1 . . 2 . . . Utility 11 | . . . . . . . 2 . . 2 . . . . 2 . . . . . 2 . . . . . . 1 . . . . . . . . . . 2 . . Weapon . | . . . . . . . . . . . . . . . . . . . . . . . . . . . . . . . . . . . . . . . . . . Parts Attached 643 | 8 7 3 28 3 . 2 15 22 5 16 6 . 2 1 64 3 2 2 18 2 55 2 42 2 4 6 4 12 . 39 20 16 13 8 16 5 5 33 67 62 23 Power 51 | 1 4 . 6 . . . 1 2 1 1 . . . . 3 . . . 2 . 2 . 1 . . 2 . . . 3 . 1 2 . 1 . 1 4 5 5 3 Engine 14 | 1 4 . 6 . . . 1 1 1 . . . . . . . . . . . . . . . . . . . . . . . . . . . . . . . . Core 17 | . . . . . . . . 1 . 1 . . . . 3 . . . 1 . 2 . 1 . . 1 . . . 2 . 1 1 . 1 . . 2 . . . Reactor 20 | . . . . . . . . . . . . . . . . . . . 1 . . . . . . 1 . . . 1 . . 1 . . . 1 2 5 5 3 Propulsion 77 | 2 1 1 9 . . . 5 7 . 5 . . 1 . 3 1 . . . . 9 . . . . . . 1 . 6 . . . . 3 . . 9 9 4 1 Treads 24 | 2 1 1 9 . . . 4 7 . . . . . . . . . . . . . . . . . . . . . . . . . . . . . . . . . Leg . | . . . . . . . . . . . . . . . . . . . . . . . . . . . . . . . . . . . . . . . . . . Wheel . | . . . . . . . . . . . . . . . . . . . . . . . . . . . . . . . . . . . . . . . . . . Hover 31 | . . . . . . . . . . . . . . . . . . . . . . . . . . . . . . 5 . . . . 3 . . 9 9 4 1 Flight 22 | . . . . . . . 1 . . 5 . . 1 . 3 1 . . . . 9 . . . . . . 1 . 1 . . . . . . . . . . . Utility 291 | 2 1 1 4 1 . . 5 7 2 7 6 . 1 1 24 . 1 . 13 . 21 . 28 2 . 4 . 3 . 21 4 10 8 4 6 2 2 13 30 41 16 Device 156 | 1 . . 4 1 . . 2 5 2 . 3 . . 1 8 . . . 6 . 10 . 15 1 . 1 . . . 8 3 6 7 2 4 1 . 8 17 30 10 Storage 15 | 1 1 1 . . . . . . . 1 . . . . . . . . 2 . . . 1 . . . . . . 1 . . 1 . . . . 1 . 5 . Processor 17 | . . . . . . . 1 . . . . . . . 1 . 1 . 1 . 2 . . . . . . . . . . . . 1 1 1 . 1 4 2 1 Hackware 40 | . . . . . . . . . . 4 1 . . . 2 . . . 2 . 5 . 11 1 . . . 3 . 3 . . . 1 1 . . 3 3 . . Protection 63 | . . . . . . . 2 2 . 2 2 . 1 . 13 . . . 2 . 4 . 1 . . 3 . . . 9 1 4 . . . . 2 . 6 4 5 Artifact . | . . . . . . . . . . . . . . . . . . . . . . . . . . . . . . . . . . . . . . . . . . Weapon 224 | 3 1 1 9 2 . 2 4 6 2 3 . . . . 34 2 1 2 3 2 23 2 13 . 4 . 4 8 . 9 16 5 3 4 6 3 2 7 23 12 3 Energy Gun 1 | 1 . . . . . . . . . . . . . . . . . . . . . . . . . . . . . . . . . . . . . . . . . Energy Cannon 109 | . . . 3 1 . 1 2 4 1 . . . . . 17 . . 1 . 1 10 . 5 . 3 . 2 3 . 6 16 2 2 3 4 2 1 3 12 3 1 Ballistic Gun 15 | 2 . 1 1 . . . . . . . . . . . . . . . 2 . 3 1 1 . . . . 1 . 2 . 1 . . . . . . . . . Ballistic Cannon 3 | . 1 . 2 . . . . . . . . . . . . . . . . . . . . . . . . . . . . . . . . . . . . . . Launcher 15 | . . . 2 1 . 1 1 2 1 1 . . . . 1 1 . . 1 . . . . . . . 1 . . 1 . . . . . 1 . . . . . Special Weapon 6 | . . . . . . . . . . . . . . . 1 . 1 . . . 1 . 1 . . . . . . . . 1 1 . . . . . . . . Impact Weapon . | . . . . . . . . . . . . . . . . . . . . . . . . . . . . . . . . . . . . . . . . . . Slashing Weapon 67 | . . . 1 . . . 1 . . 2 . . . . 15 1 . 1 . 1 9 1 6 . 1 . 1 3 . . . 1 . 1 2 . 1 3 10 5 1 Piercing Weapon 7 | . . . . . . . . . . . . . . . . . . . . . . . . . . . . . . . . . . . . . . 1 1 4 1 Special Melee Weapon 1 | . . . . . . . . . . . . . . . . . . . . . . . . . . . . 1 . . . . . . . . . . . . . Unidentified Prototypes 32 | . . . 1 . . . 1 . . 2 . . . . 2 . . . 5 . . . 1 . . 4 . . . 1 . 4 1 3 . 2 4 1 . . . Corrupted Parts 6 | . . . . . . . . . . . . . . . . . . . . . . . . . . . . . . . . 1 2 . . . . . . 3 . System Corruption 18 | . . . . . . . . . . . . . . . . . . . . . . . . . . . . . . . . 3 4 . . . . . . 11 . Parts Lost 49 | . 1 1 3 . . . 4 16 . . . . 1 . . . . . 1 . 3 . 1 . . . . . . . 1 2 . 1 . . . . . 6 8 Power 4 | . 1 . . . . . . 2 . . . . . . . . . . . . . . . . . . . . . . . . . . . . . . . . 1 Propulsion 14 | . . . 2 . . . 3 6 . . . . 1 . . . . . . . . . . . . . . . . . . . . . . . . . . 1 1 Utility 26 | . . . 1 . . . 1 6 . . . . . . . . . . . . 3 . 1 . . . . . . . 1 2 . 1 . . . . . 4 6 Weapon 5 | . . 1 . . . . . 2 . . . . . . . . . . 1 . . . . . . . . . . . . . . . . . . . . 1 . Highest Loss Streak 11 | . 1 1 2 . . . 3 11 . . . . 1 . . . . . 1 . 2 . 1 . . . . . . . 1 2 . 1 . . . . . 6 2 To Critical Strikes 3 | . . . 1 . . . . . . . . . . . . . . . . . . . . . . . . . . . . . . . . . . . . . 2 Average Slot Usage (%) 97 | . 99 100 98 100 100 100 99 99 100 96 92 92 92 92 95 94 96 100 95 93 91 94 96 94 94 93 94 99 100 96 87 97 99 100 97 95 93 98 99 97 98 Engine 3 | . 14 14 11 11 11 11 9 8 6 5 . . . . . . . . . . . . . . . . . . . . . . . . . . . . . . . Core 3 | . . . . . . . . . 2 1 7 7 7 7 6 6 6 6 6 6 4 5 5 5 5 4 5 4 5 5 5 5 5 5 9 9 9 7 2 . . Reactor 2 | . . . . . . . . . . . . . . . . . . . . . . . . . . . . . . . . . . . . . . 4 7 11 11 Treads 10 | . 27 28 44 44 44 44 36 35 36 . . . . . . . . . . . . . . . . . . . . . . . . . . . . . . . . Hover 11 | . . . . . . . . . . . . . . . . . . . . . . . . . . . . . . 7 26 26 26 26 28 28 27 32 29 30 30 Flight 8 | . . . . . . . . . . 30 30 30 30 30 26 26 26 26 26 26 22 23 23 23 23 23 23 26 26 18 . . . . . . . . . . . Device 10 | . 14 14 9 11 11 11 10 16 18 . 3 7 4 5 1 13 9 6 5 6 6 11 5 5 5 5 5 . . 4 4 13 14 15 10 9 9 7 11 19 16 Storage 6 | . 14 14 11 11 11 11 9 9 9 7 7 7 7 7 6 6 6 6 6 6 5 5 5 5 5 5 5 5 5 5 5 5 5 5 4 4 4 4 3 4 3 Processor 6 | . . . . . . . 7 9 9 . . . . . . 6 9 13 11 6 6 5 5 5 5 5 5 . . . . . . . 6 9 9 4 12 19 19 Hackware 13 | . . . . . . . . . . 28 23 23 23 23 24 6 6 6 7 13 21 23 28 29 29 29 29 42 42 39 29 26 26 26 22 23 22 24 15 . . Protection 6 | . . . . . . . 9 . . 7 11 7 10 9 19 20 20 20 19 20 11 11 10 11 11 11 11 10 10 6 10 10 10 10 4 4 3 4 4 2 7 Energy Cannon 5 | . . . 10 16 22 22 17 17 17 . . . . . . . . . . . . . . . . . . . 5 4 5 3 . 5 3 4 4 3 2 . . Ballistic Gun 1 | . 23 14 4 . . . . . . . . . . . . . . . 1 . . . . . . . . 4 . . . . . . . . . . . . . Slashing Weapon 2 | . . . . . . . . . . 13 7 7 7 7 5 5 6 6 6 5 4 4 4 5 4 5 4 4 5 3 . 4 5 5 2 . . 2 3 3 2 Naked Turns . | . . . . . . . . . . . . . . . . . . . . . . . . . . . . . . . . . . . . . . . . . . Heaviest Build 137 | 13 31 91 97 97 97 97 109 104 95 88 19 18 19 19 35 27 23 23 29 22 27 24 28 24 32 24 24 30 30 87 87 86 87 85 102 100 117 126 136 137 121 Greatest Support 136 | 40 40 40 80 80 80 80 80 92 82 21 21 21 21 21 24 33 23 23 29 23 30 24 24 24 24 24 30 36 36 85 85 85 85 85 102 102 102 136 136 136 136 Greatest Overweight (x) 4 | 1 . 2 1 1 1 1 1 2 1 4 . . . . 1 . . . 1 . . . 1 . 1 . . . . 1 1 1 1 . . . 1 1 1 1 . Average Overweight (x) . | . . . 1 1 1 1 1 1 1 . . . . . . . . . . . . . . . . . . . . . . . . . . . . . . . . Largest Inventory Capacity 25 | 8 15 25 25 25 25 25 25 25 25 25 8 8 8 8 8 8 8 8 8 8 8 8 10 10 10 10 10 10 10 20 20 20 20 20 20 20 20 20 20 20 15 Average Capacity 16 | 7 11 18 25 25 25 25 25 25 25 9 8 8 8 8 8 8 8 8 8 8 8 8 8 10 10 10 10 10 10 12 20 20 20 20 20 20 20 20 20 17 15 Most Carried 25 | 2 15 15 25 25 25 25 25 25 25 25 8 8 8 7 8 8 8 8 8 8 8 8 10 10 10 10 10 9 10 20 20 20 20 20 20 20 20 20 20 20 15 Average Carried 15 | 1 7 14 19 24 25 24 24 23 24 8 8 8 7 7 7 7 7 8 7 8 7 8 8 9 9 9 9 7 9 11 19 19 19 19 19 19 18 19 19 17 13 Final Capacity 25 | 8 15 25 25 25 25 25 25 25 25 8 8 8 8 8 8 8 8 8 8 8 8 8 10 10 10 10 10 10 10 20 20 20 20 20 20 20 20 20 20 15 15 Final Carried 25 | 2 15 15 25 25 25 25 25 22 25 8 8 8 7 7 8 8 8 8 8 8 8 8 9 10 10 10 10 9 10 20 20 20 20 20 20 20 20 20 17 15 11 Class Distribution -------------------- 22% | Scavenger-Mutant 17% | Hacker-Sprinter 12% | Wizard-Mutant 10% | Machinist-Sprinter 9% | Wizard-Sprinter 7% | Wizard-Scout 6% | Mutant 6% | Machinist-Mutant Dominant Class ---------------- Mutant | -10/Materials Mutant | -10/Mines Scavenger-Mutant | -9/Materials Scavenger-Mutant | -9/Mines Scavenger-Mutant | -9/Exiles Scavenger-Mutant | -8/Mines Scavenger-Mutant | -8/Materials Scavenger-Mutant | -8/Garrison Scavenger-Mutant | -8/Materials Hacker-Sprinter | -7/Factory Hacker-Sprinter | -7/Lower Caves Hacker-Sprinter | -7/Lower Caves Hacker-Sprinter | -7/Data Miner Hacker-Sprinter | -6/Proximity Caves Hacker-Sprinter | -6/Factory Scout | -6/Lower Caves Sprinter | -6/Lower Caves Sprinter | -6/Zion Sprinter | -6/Deep Caves Hacker-Sprinter | -5/Proximity Caves Hacker-Sprinter | -5/Factory Hacker-Sprinter | -5/Waste Hacker-Sprinter | -5/Factory Wizard-Sprinter | -5/Upper Caves Wizard-Sprinter | -5/Upper Caves Wizard-Sprinter | -5/Zhirov Wizard-Sprinter | -4/Proximity Caves Wizard-Sprinter | -4/Factory Wizard-Sprinter | -4/Waste Wizard-Sprinter | -4/Factory Wizard-Mutant | -4/Extension Wizard-Mutant | -4/Cetus Wizard-Mutant | -4/Archives Wizard-Mutant | -4/Hub_04(d) Wizard-Scout | -3/Research Wizard-Scout | -3/Armory Wizard-Mutant | -3/Lab Wizard-Scout | -2/Research Wizard-Scout | -1/Access Machinist-Sprinter | -1/Command Machinist-Sprinter | -1/Access_0 Resources | -11 -10 -10 -9 -9 -9 -8 -8 -8 -8 -7 -7 -7 -7 -6 -6 -6 -6 -6 -6 -5 -5 -5 -5 -5 -5 -5 -4 -4 -4 -4 -4 -4 -4 -4 -3 -3 -3 -2 -1 -1 -1 ----------- Run | Jun Mat Min Mat Min Exi Min Mat Gar Mat Fac Low Low Dat Pro Fac Low Low Zio Dee Pro Fac Was Fac Upp Upp Zhi Pro Fac Was Fac Ext Cet Arc Hub Res Arm Lab Res Acc Com Ac0 Matter Collected 8363 | 374 304 109 758 108 . 31 134 172 68 120 90 10 . 25 655 100 20 20 328 27 637 100 429 20 40 50 74 150 . 498 190 145 148 47 391 102 35 580 535 617 122 Remotely . | . . . . . . . . . . . . . . . . . . . . . . . . . . . . . . . . . . . . . . . . . . Salvage Created 20776 | 157 526 146 1178 114 . 47 464 698 286 263 87 121 . 42 909 156 66 . 444 154 650 461 1515 92 70 95 59 154 . 1092 1187 371 181 644 413 102 . 749 1737 3358 1988 Parts 1016 | 12 38 8 83 17 . 6 10 35 20 9 9 1 . . 48 9 1 . 24 2 54 5 58 6 . 2 6 10 . 64 37 26 14 28 19 3 . 41 95 96 120 Haulers Intercepted 20 | . 2 . 3 . . . . . . 2 . . . . 5 . . . . . 2 . 4 . . . . . . 1 . . . . . . . . 1 . . Recyclers Shooed 8 | 2 1 1 2 . . . . . . . . . . . . . . . . . . . 1 . . . . . . 1 . . . . . . . . . . . Parts Field Recycled . | . . . . . . . . . . . . . . . . . . . . . . . . . . . . . . . . . . . . . . . . . . Retrieved Matter . | . . . . . . . . . . . . . . . . . . . . . . . . . . . . . . . . . . . . . . . . . . Parts Self-Destructed 25 | . . . . . . . . . . . 11 . . . . . 1 . . . . . . 3 2 2 6 . . . . . . . . . . . . . . Prevented 6 | . . . . . . . . . . . 1 . . . . . . . . . . . . . 3 . 2 . . . . . . . . . . . . . . Kills | -11 -10 -10 -9 -9 -9 -8 -8 -8 -8 -7 -7 -7 -7 -6 -6 -6 -6 -6 -6 -5 -5 -5 -5 -5 -5 -5 -4 -4 -4 -4 -4 -4 -4 -4 -3 -3 -3 -2 -1 -1 -1 ------- Run | Jun Mat Min Mat Min Exi Min Mat Gar Mat Fac Low Low Dat Pro Fac Low Low Zio Dee Pro Fac Was Fac Upp Upp Zhi Pro Fac Was Fac Ext Cet Arc Hub Res Arm Lab Res Acc Com Ac0 Combat Hostiles Destroyed 191 | . 12 4 22 13 . 4 5 16 6 . 1 . . . 2 4 . . 4 . 1 1 3 . . . 4 1 . 10 14 3 1 1 3 1 . 2 14 19 20 Melee 50 | . . . . . . . . . . . 1 . . . 2 . . . . . . . 3 . . . . . . . . . . 1 . . . . 7 17 19 Guns 19 | . 8 1 4 . . . . . . . . . . . . . . . 1 . 1 1 . . . . . 1 . 2 . . . . . . . . . . . Cannons 58 | . 4 3 12 5 . 1 5 10 3 . . . . . . . . . . . . . . . . . . . . 3 9 . 1 . . . . . 2 . . AOE 39 | . . . 6 8 . 3 . 4 3 . . . . . . 4 . . 3 . . . . . . . 4 . . 4 . . . . . . . . . . . Classes Destroyed 21 | 2 5 . 3 1 . . . 1 1 . 1 . . 1 . . . . . . . 1 . 2 . . . . . . . . . 1 . . . . 2 . . Worker 41 | . 1 . 2 . . 1 1 . . . . . . . 5 . . . . . 5 . 9 . . . . 3 . 1 . . . 5 . . . 3 1 4 . Builder 36 | . . . 2 . . . . . 2 1 . . . . 6 . . . . . 6 . . . . . . . . 9 1 . . . 2 . . 2 5 . . Tunneler 11 | 5 . . . 1 . . . . . . . . . . 1 . . . . . 1 . . . . . . . . . . . . . . . . 1 2 . . Hauler 20 | . 2 . 3 . . . . . . 2 . . . . 5 . . . . . 2 . 4 . . . . . . 1 . . . . . . . . 1 . . Recycler 22 | 1 . . 3 . . . 2 . . 2 . . . . . . . . . . . . 5 . . . . . . . . . . 3 . . . 3 1 2 . Minesweeper 1 | . . . . . . . . . . . . . . . . . . . . . . . . 1 . . . . . . . . . . . . . . . . . Mechanic 3 | . . . . . . . . . 1 . . . . . . . . . . . . . . . . . . . . 1 . . . . . . . . 1 . . Operator 7 | . 1 . 2 . . . . . . . . . . . . . . . . . . . . . . . . . . . 1 . 2 . . . . . . 1 . Watcher 33 | . 1 . 3 . . . . . 1 . . . . . 2 . . . . . 5 . 3 . . . . . . 6 . 1 . 1 2 . . 2 3 3 . Swarmer 44 | . . . 7 9 . 4 . 4 3 . . . . . . 4 . . . . . . . . . . 4 . . 4 . . . . . . . . . 5 . Grunt 62 | . 12 4 12 . . . 2 8 2 . . . . . 2 . . . . . . . . . . . . . . 2 8 . . . . . . . 3 7 . Brawler 1 | . . . . . . . . . . . . . . . . . . . . . . . . . . . . . . . 1 . . . . . . . . . . Duelist 2 | . . . . . . . . . . . . . . . . . . . . . . . . . . . . . . . . . . . . . . . 1 1 . Sentry 27 | . . . 3 . . . 3 3 1 . . . . . . . . . . . 1 . . . . . . 1 . 2 5 . 1 . 3 1 . 2 1 . . Hunter 2 | . . . . . . . . . . . . . . . . . . . . . . . . . . . . . . . . . . . . . . . 2 . . Programmer 12 | . . . . . . . . . . . 1 . . . . . . . . . . . 3 . . . . . . 2 . . . . . . . . 6 . . Heavy 1 | . . . . . . . . . . . . . . . . . . . . . . . . . . . . . . . . . . . . . . . 1 . . Behemoth 1 | . . . . . . . . 1 . . . . . . . . . . . . . . . . . . . . . . . . . . . . . . . . . Compactor 1 | . . . . . . . . . . . . . . . . . . . . . . 1 . . . . . . . . . . . . . . . . . . . Cetus Guard 3 | . . . . . . . . . . . . . . . . . . . . . . . . . . . . . . . . 3 . . . . . . . . . M Guard 2 | . . . . . . . . . . . . . . . . . . . . . . . . . . . . . . . . . . . . . . . . 2 . Enhanced Grunt 12 | . . . . . . . . . . . . . . . . . . . 2 . . . . . . . . . . . . . . . . . . . . . 10 Enhanced Sentry 2 | . . . . . . . . . . . . . . . . . . . . . . . . . . . . . . . . . . . . . . . . . 2 Enhanced Hunter 4 | . . . . . . . . . . . . . . . . . . . . . . . . . . . . . . . . . . . . . . . . . 4 Lightning 1 | . . . . . . . . . . . . . . . . . . . . . . . . . . . . . . . . . . 1 . . . . . . . Combat Programmer 2 | . . . . . . . . . . . . . . . . . . . . . . . . . . . . . . . . . . . . . . . . 2 . Z-Technician 5 | . . . . . . . . . . . . . . . . . . . 5 . . . . . . . . . . . . . . . . . . . . . . Packrat 4 | . . . . . . . . . . . . 2 . . . . 1 . . 1 . . . . . . . . . . . . . . . . . . . . . Samaritan 1 | . . . . . . . . . . . . . . 1 . . . . . . . . . . . . . . . . . . . . . . . . . . . Assembled 7 | . . . . 4 . . . . . . . . . . . . . . 3 . . . . . . . . . . . . . . . . . . . . . . Thug 1 | . . . . . . . . . . . . . . . . . . . 1 . . . . . . . . . . . . . . . . . . . . . . Savage 1 | . . . . . . . . . . . . . . . . . . . . . . . . 1 . . . . . . . . . . . . . . . . . Best Kill Streak 10 | 3 3 2 10 4 . 4 4 6 3 2 1 . . . 3 4 . . 4 . 3 1 3 1 . . 4 2 . 4 3 3 1 8 3 1 . 4 5 7 7 Combat Bots Only 10 | . 3 2 10 3 . 4 2 6 3 . 1 . . . 2 4 . . 3 . 1 1 2 . . . 4 1 . 4 3 2 1 1 2 1 . 2 4 6 7 Max Kills in Single Turn 4 | 1 2 1 4 3 . 3 1 4 2 1 1 1 . 1 2 3 1 . 2 1 1 1 1 1 . . 4 1 . 3 1 1 1 1 1 1 . 1 1 1 1 Gunslinging . | . . . . . . . . . . . . . . . . . . . . . . . . . . . . . . . . . . . . . . . . . . Exploded 4 | . . . 4 2 . 3 . 4 2 . . . . . . 3 . . 2 . . . . . . . 4 . . 3 . . . . . . . . . . . Melee 1 | . . . . . . . . . . . 1 . . . 1 . . . . . . . 1 . . . . . . . . . . 1 . . . . 1 1 1 Uniques/NPCs Destroyed 8 | . . . . . . . . . . . . . . . . . . . 1 . . . . . . . . . . . . 1 . . . . . . . 2 4 Z-Imprinter (-6/Deep Caves) A7 (-4/Cetus) MAIN.C Shell (-1/Command) MAIN.C (-1/Command) A8 (-1/Access_0) A6 (-1/Access_0) A5 (-1/Access_0) Architect (-1/Access_0) Combat | -11 -10 -10 -9 -9 -9 -8 -8 -8 -8 -7 -7 -7 -7 -6 -6 -6 -6 -6 -6 -5 -5 -5 -5 -5 -5 -5 -4 -4 -4 -4 -4 -4 -4 -4 -3 -3 -3 -2 -1 -1 -1 -------- Run | Jun Mat Min Mat Min Exi Min Mat Gar Mat Fac Low Low Dat Pro Fac Low Low Zio Dee Pro Fac Was Fac Upp Upp Zhi Pro Fac Was Fac Ext Cet Arc Hub Res Arm Lab Res Acc Com Ac0 Damage Taken 14286 | . 434 152 1008 234 . 92 416 1802 164 . 31 . 133 . 34 . . . 314 . 296 . 289 . . . 61 . . 262 1038 242 27 548 38 . . 125 586 2689 3271 Core 1383 | . 58 15 157 7 . . 61 179 . . . . . . . . . . 11 . 11 . 47 . . . 17 . . 15 62 34 . 39 17 . . . 12 258 383 Absorbed by Shields 4977 | . . . . . . . . 24 . . . . . . . . . . . . . . . . . . . . . . 172 77 . . 13 . . 128 202 1123 3238 Redirected to Shielding 804 | . . . . . . . . . . . 9 . . . 13 . . . 60 . 89 . . . . . . . . 17 127 10 . . . . . . . 465 14 Regen/Repaired (Parts) 2122 | . . . . . . . . . . . . . . . 83 . . . . . 434 . 127 . . . . . . 51 . 24 72 14 282 . . 215 456 166 198 Core Remaining (%) 82 | 100 . 70 . . . 59 . . 56 . . . . 100 . . . . . 98 . . . . . . 92 . . . . . . 86 . . 91 100 . . 50 Volleys Fired 839 | 17 39 12 65 16 . 5 21 44 19 . . . . . 31 5 . . 26 6 38 10 12 . 10 . 6 16 . 91 83 49 40 8 36 14 10 47 43 16 4 Largest 2 | 2 2 2 2 2 . 2 2 2 2 . . . . . 1 1 . . 1 1 1 1 1 . 1 . 1 1 . 1 1 1 1 1 1 1 1 1 1 1 1 Hottest 136 | 40 55 55 136 136 . 136 136 136 136 . . . . . 35 39 . . 40 35 40 40 105 . 35 . 39 40 . 105 105 88 88 88 70 70 35 70 120 70 88 Shots Fired 1059 | 34 78 24 127 24 . 9 42 84 36 . . . . . 31 5 . . 26 6 37 10 12 . 10 . 6 16 . 91 84 49 40 8 36 14 10 47 43 16 4 Gun 210 | 34 64 12 40 . . . . . . . . . . . . . . . 22 . 13 10 . . . . . 5 . 10 . . . . . . . . . . . Cannon 759 | . 14 12 85 16 . 8 42 83 34 . . . . . 31 . . . . 6 23 . 10 . 10 . 5 11 . 78 84 22 7 8 36 14 10 47 43 16 4 Launcher 25 | . . . 2 8 . 1 . 1 2 . . . . . . 5 . . 2 . . . . . . . 1 . . 3 . . . . . . . . . . . Special 65 | . . . . . . . . . . . . . . . . . . . 2 . 1 . 2 . . . . . . . . 27 33 . . . . . . . . Kinetic 274 | 34 78 24 78 . . . . . . . . . . . . . . . 22 . 13 10 . . . . . 5 . 10 . . . . . . . . . . . Thermal 599 | . . . 47 16 . 8 42 83 34 . . . . . 31 . . . 2 6 23 . 10 . 10 . 5 11 . 70 32 28 33 . 27 12 10 37 22 . . Explosive 25 | . . . 2 8 . 1 . 1 2 . . . . . . 5 . . 2 . . . . . . . 1 . . 3 . . . . . . . . . . . Electromagnetic 158 | . . . . . . . . . . . . . . . . . . . . . . . . . . . . . . 8 52 21 7 8 9 2 . 10 21 16 4 Robot Hit Streak 23 | 3 10 6 11 2 . 4 11 23 8 . . . . . . 2 . . 9 . 19 4 5 . . . . 2 . 12 4 7 7 . 3 4 . 10 14 15 3 Robot Miss Streak 5 | 3 5 3 3 3 . 2 2 3 3 . . . . . . 3 . . 2 . . 3 1 . . . . 1 . 2 2 4 4 1 1 . . . . 1 1 Penetration Max 1 | . . . . . . . . . . . . . . . . . . . . . 1 . . . . . . . . 1 . . . . . . . . 1 . . Secondary Targets 2 | . 2 . . . . . . . . . . . . . . . . . . . . . . . . . . . . . . . . . . . . . . . . Max Gunslinging Chain 1 | . 1 . . . . . . . . . . . . . . . . . . . . . . . . . . . . . . . . . . . . . . . . Capacitor 3 | . . . . . . . . . . . . . . . . . . . . . . . . . . . . . . . . 3 . . . . . . . . . Shots Hit Robots 1027 | 17 47 15 80 7 . 5 31 60 20 5 2 2 1 1 26 5 1 . 27 2 35 9 45 2 1 2 . 9 . 51 38 34 29 15 9 1 . 17 50 127 199 Core Hits 523 | 7 25 7 43 13 . 4 11 26 17 4 2 2 . 1 27 4 . . 18 . 17 3 16 2 . 1 3 2 . 29 20 12 12 10 7 . . 6 24 56 92 Critical Kills 9 | . . . . . . . . 2 . . . . . . . . . . 2 . 1 1 . . . . . 1 . 2 . . . . . . . . . . . Critical Parts Destroyed 11 | . . . . . . . . . . . . . . . . . . . 4 . . 1 . . . . . 2 . 4 . . . . . . . . . . . Critical Strikes 67 | . . . 1 . . . . 2 . . . . . . 2 . . . 6 . 2 4 . . . . . 4 . 7 1 2 3 1 2 . . 3 7 8 12 Meltdown 2 | . . . . . . . . 2 . . . . . . . . . . . . . . . . . . . . . . . . . . . . . . . . . Destroy 21 | . . . . . . . . . . . . . . . . . . . 6 . 2 4 . . . . . 3 . 6 . . . . . . . . . . . Blast 1 | . . . 1 . . . . . . . . . . . . . . . . . . . . . . . . . . . . . . . . . . . . . . Corrupt 13 | . . . . . . . . . . . . . . . . . . . . . . . . . . . . . . . 1 . . . 2 . . 1 5 3 1 Sever 26 | . . . . . . . . . . . . . . . 2 . . . . . . . . . . . . 1 . 1 . 2 3 1 . . . . 2 5 9 Impale 4 | . . . . . . . . . . . . . . . . . . . . . . . . . . . . . . . . . . . . . . 2 . . 2 Melee Attacks 992 | . . . 2 . . . 1 . . 11 10 8 6 3 80 4 1 13 14 11 96 3 69 3 8 2 6 14 . 74 . 3 . 20 11 . . 44 83 186 206 Impact . | . . . . . . . . . . . . . . . . . . . . . . . . . . . . . . . . . . . . . . . . . . Slashing 902 | . . . 2 . . . 1 . . 11 10 8 6 3 80 4 1 13 14 11 96 3 69 3 8 2 6 13 . 74 . 3 . 20 11 . . 27 82 135 186 Piercing 89 | . . . . . . . . . . . . . . . . . . . . . . . . . . . . . . . . . . . . . . 17 1 51 20 Sneak Attacks 125 | . . . 1 . . . . . . 5 . 2 1 1 14 . 1 . 6 1 18 . 18 2 . . . 4 . 10 . 3 . 9 2 . . 9 12 6 . Combat Hostiles 3 | . . . . . . . . . . . . . . . . . . . . . . . . . . . . . . . . . . . . . . . 2 1 . Follow-up Attacks 31 | . . . . . . . . . . . . . . . . . . . . . . . . . . . . . . . . . . . . . . . 3 10 18 Damage Inflicted 55660 | 240 722 261 1937 689 . 347 678 1531 576 545 147 169 105 119 2251 725 116 . 1060 229 2179 352 3107 159 124 217 254 501 . 2839 1401 1117 589 1243 575 87 . 1274 3824 10784 12587 Guns 1502 | 219 477 90 331 . . . . . . . . . . . . . . . 172 . 69 52 . . . . . 33 . 59 . . . . . . . . . . . Cannons 8957 | . 198 163 1018 105 . 85 678 1303 432 . . . . . . . . . . . . . . . . . . . . 844 1401 534 203 . 298 87 . 253 850 407 98 Explosions 3133 | . . . 466 568 . 244 . 228 142 . . . . . 221 478 . . 151 . . . . . . . 254 . . 327 . . . 54 . . . . . . . Melee 41178 | . . . 98 . . . . . . 545 147 169 105 119 2030 247 116 . 737 229 2110 300 3107 159 124 217 . 468 . 1609 . 215 . 1189 277 . . 1021 2974 10377 12489 Ramming 136 | 21 47 8 24 16 . 18 . . 2 . . . . . . . . . . . . . . . . . . . . . . . . . . . . . . . . Kinetic 2231 | 219 675 253 699 . . . . . . . . . . . . . . . 172 . 69 52 . . . . . 33 . 59 . . . . . . . . . . . Thermal 4897 | . . . 650 105 . 85 678 1303 432 . . . . . 92 . . . . . . . . . . . . . . 572 226 368 386 . . . . . . . . Explosive 2858 | . . . 466 568 . 244 . 228 142 . . . . . . 478 . . 151 . . . . . . . 254 . . 327 . . . . . . . . . . . Electromagnetic 4360 | . . . . . . . . . . . . . . . 129 . . . . . . . . . . . . . . 272 1175 534 203 54 298 87 . 253 850 407 98 Impact . | . . . . . . . . . . . . . . . . . . . . . . . . . . . . . . . . . . . . . . . . . . Slashing 37310 | . . . 98 . . . . . . 545 147 169 105 119 2030 247 116 . 737 229 2110 300 3107 159 124 217 . 468 . 1609 . 215 . 1189 277 . . 509 2974 8078 11432 Piercing 3868 | . . . . . . . . . . . . . . . . . . . . . . . . . . . . . . . . . . . . . . 512 . 2299 1057 Highest Corruption 8 | . . . . . . . . . . . . . . . 1 1 1 1 . . 6 . 1 . . . . . . 3 3 5 7 1 . . . . 2 8 2 Average Corruption 2 | . . . . . . . . . . . . . . . 1 1 1 1 . . 5 . 1 . . . . . . 2 2 2 4 1 . . . . 2 3 2 Corruption Purged 36 | . . . . . . . . . . . . . . . . . . . . . 6 . 1 . . . . . . . 3 . 9 . . . . . . 17 . Corruption Blocked . | . . . . . . . . . . . . . . . . . . . . . . . . . . . . . . . . . . . . . . . . . . Effects 81 | . . . . . . . . . . . . . . . 9 . . . . . 16 . . . . . . . . 5 9 3 6 1 . . . . 8 17 7 Message Errors 23 | . . . . . . . . . . . . . . . 4 . . . . . 2 . . . . . . . . . 4 2 3 1 . . . . 2 5 . Matter Fused 24 | . . . . . . . . . . . . . . . 2 . . . . . 5 . . . . . . . . 2 . 1 1 . . . . . 4 6 3 Heat Flow Errors 6 | . . . . . . . . . . . . . . . 1 . . . . . 1 . . . . . . . . 1 . . . . . . . . . 2 1 Energy Discharges 7 | . . . . . . . . . . . . . . . . . . . . . 1 . . . . . . . . 1 . . 1 . . . . . 1 1 2 Parts Rejected 1 | . . . . . . . . . . . . . . . . . . . . . . . . . . . . . . . . . . . . . . . . . 1 Data Loss (minor) 14 | . . . . . . . . . . . . . . . 2 . . . . . 4 . . . . . . . . . 4 . 1 . . . . . 1 2 . Data Loss (major) 2 | . . . . . . . . . . . . . . . . . . . . . . . . . . . . . . 1 . . . . . . . . . 1 . Misfires 1 | . . . . . . . . . . . . . . . . . . . . . . . . . . . . . . . 1 . . . . . . . . . . Alerts 2 | . . . . . . . . . . . . . . . . . . . . . 2 . . . . . . . . . . . . . . . . . . . . Weapon Failures 1 | . . . . . . . . . . . . . . . . . . . . . 1 . . . . . . . . . . . . . . . . . . . . Overload Shots 16 | . . . . . . . . . . . . . . . . . . . . . . . 1 . . . . . . 1 1 . . . . . . . 13 . . Effects 1 | . . . . . . . . . . . . . . . . . . . . . . . . . . . . . . . . . . . . . . . 1 . . Heat Surge 1 | . . . . . . . . . . . . . . . . . . . . . . . . . . . . . . . . . . . . . . . 1 . . Overflow Damage 6187 | . . . 97 58 . 10 . . 1 53 . . 45 . 270 147 113 . 157 144 487 50 780 . 85 86 45 239 . 362 6 42 4 121 104 . . 459 695 1157 370 Projectiles 78 | . . . 15 . . . . . 1 . . . . . . . . . . . . . . . . . . . . 18 6 7 4 . . . . . 27 . . Explosions 326 | . . . . 58 . 10 . . . . . . . . 9 144 . . . . . . . . . . 45 . . 60 . . . . . . . . . . . Melee 5783 | . . . 82 . . . . . . 53 . . 45 . 261 3 113 . 157 144 487 50 780 . 85 86 . 239 . 284 . 35 . 121 104 . . 459 668 1157 370 Knockbacks 12 | . 2 3 7 . . . . . . . . . . . . . . . . . . . . . . . . . . . . . . . . . . . . . . Impact . | . . . . . . . . . . . . . . . . . . . . . . . . . . . . . . . . . . . . . . . . . . Kinetic 12 | . 2 3 7 . . . . . . . . . . . . . . . . . . . . . . . . . . . . . . . . . . . . . . Secondary . | . . . . . . . . . . . . . . . . . . . . . . . . . . . . . . . . . . . . . . . . . . Self-Inflicted Damage 264 | . . . . 24 . 33 . 15 . . . . . . . . . . . . . . . . . . . . . . . . . 192 . . . . . . . Shots 5 | . . . . 1 . 1 . 1 . . . . . . . . . . . . . . . . . . . . . . . . . 2 . . . . . . . Rammed 18 | 4 4 3 2 2 . 2 . . 1 . . . . . . . . . . . . . . . . . . . . . . . . . . . . . . . . Targets Rammed 21 | 4 7 3 2 2 . 2 . . 1 . . . . . . . . . . . . . . . . . . . . . . . . . . . . . . . . Kicked . | . . . . . . . . . . . . . . . . . . . . . . . . . . . . . . . . . . . . . . . . . . Crushed 3 | . 3 . . . . . . . . . . . . . . . . . . . . . . . . . . . . . . . . . . . . . . . . Highest Temperature 328 | . 37 35 6 69 . 6 86 328 4 . . . . . 186 10 . . 7 . 108 . 50 . . . . . . 229 263 67 36 7 . . . 112 223 199 217 Average Temperature 34 | . 17 16 4 17 . 2 24 82 2 . . . . . 99 7 . . 3 . 26 . 32 . . . . . . 92 76 23 12 6 . . . 12 30 48 122 Received Heat Transfer 2326 | . 252 102 372 80 . . 162 701 63 . . . . . . . . . 56 . . . . . . . . . . 21 229 39 . 127 6 . . 24 . 56 36 Siege Activations . | . . . . . . . . . . . . . . . . . . . . . . . . . . . . . . . . . . . . . . . . . . Robots Corrupted 23 | . . . . . . . . . . . . . . . . . . . . . . . . . . . . . . 1 5 3 . . 3 1 . 2 5 2 1 Combat Hostiles 23 | . . . . . . . . . . . . . . . . . . . . . . . . . . . . . . 1 5 3 . . 3 1 . 2 5 2 1 Parts Fried 47 | . . . . . . . . . . . . . . . . . . . . . . . . . . . . . . 5 11 6 . . 2 1 . . 9 7 6 Impact Corruptions . | . . . . . . . . . . . . . . . . . . . . . . . . . . . . . . . . . . . . . . . . . . Robots Melted 2 | . . . . . . . . 2 . . . . . . . . . . . . . . . . . . . . . . . . . . . . . . . . . Combat Hostiles 2 | . . . . . . . . 2 . . . . . . . . . . . . . . . . . . . . . . . . . . . . . . . . . Parts Melted 28 | . . . 2 . . . 6 8 1 . . . . . . . . . . . . . 1 . . . . . . 6 3 . 1 . . . . . . . . Heat Transferred 8579 | . . . 1147 185 . 148 1221 2331 777 . . . . . 100 . . . . . . . . . . . . . . 800 350 669 851 . . . . . . . . Parts Sabotaged . | . . . . . . . . . . . . . . . . . . . . . . . . . . . . . . . . . . . . . . . . . . Parts Stolen 1 | . . . . . . . . . . . . . . . . 1 . . . . . . . . . . . . . . . . . . . . . . . . . Parts Stripped . | . . . . . . . . . . . . . . . . . . . . . . . . . . . . . . . . . . . . . . . . . . Power Chain Reactions 1 | . . . . . . . . . . . . . . . 1 . . . . . . . . . . . . . . . . . . . . . . . . . . Missiles Intercepted . | . . . . . . . . . . . . . . . . . . . . . . . . . . . . . . . . . . . . . . . . . . Alert | -11 -10 -10 -9 -9 -9 -8 -8 -8 -8 -7 -7 -7 -7 -6 -6 -6 -6 -6 -6 -5 -5 -5 -5 -5 -5 -5 -4 -4 -4 -4 -4 -4 -4 -4 -3 -3 -3 -2 -1 -1 -1 ------- Run | Jun Mat Min Mat Min Exi Min Mat Gar Mat Fac Low Low Dat Pro Fac Low Low Zio Dee Pro Fac Was Fac Upp Upp Zhi Pro Fac Was Fac Ext Cet Arc Hub Res Arm Lab Res Acc Com Ac0 Peak Influence 1097 | 30 198 50 375 378 . 103 150 422 386 180 . . . . 225 . . . . . 444 87 295 . . . . 135 62 355 393 567 401 1097 562 121 . 118 261 779 . Initial 562 | . 19 1 19 132 . . . 5 205 111 . . . . 84 . . . . . . 87 60 . . . . 94 32 43 75 54 226 70 562 107 . . 16 98 . Average 154 | 18 93 26 210 303 . 40 36 191 258 150 . . . . 95 . . . . . 250 87 129 . . . . 58 40 97 172 285 344 381 245 30 . 38 139 482 . Maximum Alert Level 3 | . . . 1 1 . . . 2 1 . . . . . 1 . . . . . 2 . 1 . . . . . . 1 1 2 2 3 2 . . . 1 3 . Low Security (%) 59 | 100 100 100 41 12 . 100 100 62 1 100 . . . . 93 . . . . . 31 100 78 . . . . 100 100 83 71 36 . 29 42 100 . 100 81 2 . Level 1 22 | . . . 58 87 . . . 31 98 . . . . . 6 . . . . . 53 . 21 . . . . . . 16 28 50 91 40 50 . . . 18 1 . Level 2 17 | . . . . . . . . 6 . . . . . . . . . . . . 15 . . . . . . . . . . 13 8 6 6 . . . . 94 . Level 3 . | . . . . . . . . . . . . . . . . . . . . . . . . . . . . . . . . . . 23 . . . . . 1 . Level 4 . | . . . . . . . . . . . . . . . . . . . . . . . . . . . . . . . . . . . . . . . . . . Level 5 . | . . . . . . . . . . . . . . . . . . . . . . . . . . . . . . . . . . . . . . . . . . High Security . | . . . . . . . . . . . . . . . . . . . . . . . . . . . . . . . . . . . . . . . . . . Max Security . | . . . . . . . . . . . . . . . . . . . . . . . . . . . . . . . . . . . . . . . . . . Squads Dispatched 67 | . 2 . 2 . . . 1 . 1 . . . . 1 13 . . . . . 7 . 6 . . . . . . 10 1 . . 6 2 2 . 5 8 . . Investigation 31 | . 2 . . . . . 1 . . . . . . . 6 . . . . . 5 . 2 . . . . . . 5 . . . 1 1 1 . 3 4 . . Extermination 17 | . . . . . . . . . . . . . . . 4 . . . . . 1 . 2 . . . . . . 4 . . . 1 . . . 1 4 . . Reinforcement 13 | . . . 2 . . . . . 1 . . . . . 3 . . . . . . . 1 . . . . . . . 1 . . 2 1 1 . 1 . . . Assault 4 | . . . . . . . . . . . . . . 1 . . . . . . 1 . 1 . . . . . . 1 . . . . . . . . . . . Garrison 2 | . . . . . . . . . . . . . . . . . . . . . . . . . . . . . . . . . . 2 . . . . . . . Intercept . | . . . . . . . . . . . . . . . . . . . . . . . . . . . . . . . . . . . . . . . . . . Searches Triggered 1 | . . . . . . . . . . . . . . . . . . . . . 1 . . . . . . . . . . . . . . . . . . . . Construction Impeded 2 | . . . . . . . . . . . . . . . 1 . . . . . . . . . . . . . . . 1 . . . . . . . . . . Haulers Reinforced 4 | . . . . . . . . . . . . . . . 2 . . . . . . . 1 . . . . . . . . . . 1 . . . . . . . Active Scanning Responses . | . . . . . . . . . . . . . . . . . . . . . . . . . . . . . . . . . . . . . . . . . . Cargo Convoy Interrupts . | . . . . . . . . . . . . . . . . . . . . . . . . . . . . . . . . . . . . . . . . . . Stealth | -11 -10 -10 -9 -9 -9 -8 -8 -8 -8 -7 -7 -7 -7 -6 -6 -6 -6 -6 -6 -5 -5 -5 -5 -5 -5 -5 -4 -4 -4 -4 -4 -4 -4 -4 -3 -3 -3 -2 -1 -1 -1 --------- Run | Jun Mat Min Mat Min Exi Min Mat Gar Mat Fac Low Low Dat Pro Fac Low Low Zio Dee Pro Fac Was Fac Upp Upp Zhi Pro Fac Was Fac Ext Cet Arc Hub Res Arm Lab Res Acc Com Ac0 Distress Signals 37 | . 1 . 4 . . . . . . . . . . . 3 . . . . . . . 1 . . . . . . 2 3 2 . 1 . . . . 2 18 . Communications Jammed 23 | . . . . . . . . . . . . . . . . . . . . . . . . . . . . . . . . . . . . . . 7 10 6 . Distress Signals 13 | . . . . . . . . . . . . . . . . . . . . . . . . . . . . . . . . . . . . . . 7 . 6 . Times Spotted 400 | . 18 4 35 16 . 4 8 16 8 2 2 . 4 10 22 2 . . 6 . 19 . 10 . . . 6 2 3 24 25 14 30 12 8 . . 11 16 24 39 Peak Tracking Total 11 | . 3 2 9 4 . 4 2 6 2 1 1 . 4 11 5 1 . . 3 . 6 . 2 . . . 5 3 3 4 5 5 3 4 3 2 . 3 6 9 7 Tactical Retreats 47 | . . . 2 2 . . . 1 . . 1 . . 3 6 . . . . . 8 . . . . . 3 . . 3 3 . . 2 . . . 2 5 5 1 Traps | -11 -10 -10 -9 -9 -9 -8 -8 -8 -8 -7 -7 -7 -7 -6 -6 -6 -6 -6 -6 -5 -5 -5 -5 -5 -5 -5 -4 -4 -4 -4 -4 -4 -4 -4 -3 -3 -3 -2 -1 -1 -1 ------- Run | Jun Mat Min Mat Min Exi Min Mat Gar Mat Fac Low Low Dat Pro Fac Low Low Zio Dee Pro Fac Was Fac Upp Upp Zhi Pro Fac Was Fac Ext Cet Arc Hub Res Arm Lab Res Acc Com Ac0 Traps Triggered 21 | . 2 . . . . . . 1 . . . . . . 2 . . . . . 4 . 1 . . . . 2 . 1 2 . . 1 . . . . 5 . . Indirectly 2 | . . . . . . . . . . . . . . . 2 . . . . . . . . . . . . . . . . . . . . . . . . . . Trap Hack Attempts . | . . . . . . . . . . . . . . . . . . . . . . . . . . . . . . . . . . . . . . . . . . Triggered . | . . . . . . . . . . . . . . . . . . . . . . . . . . . . . . . . . . . . . . . . . . Disarmed . | . . . . . . . . . . . . . . . . . . . . . . . . . . . . . . . . . . . . . . . . . . Reprogrammed . | . . . . . . . . . . . . . . . . . . . . . . . . . . . . . . . . . . . . . . . . . . Reused . | . . . . . . . . . . . . . . . . . . . . . . . . . . . . . . . . . . . . . . . . . . Traps Extracted . | . . . . . . . . . . . . . . . . . . . . . . . . . . . . . . . . . . . . . . . . . . Installed . | . . . . . . . . . . . . . . . . . . . . . . . . . . . . . . . . . . . . . . . . . . Triggered 6 | . . . . . . . . . . . 2 . . . . 1 1 . . . . . . . 1 . 1 . . . . . . . . . . . . . . Machines | -11 -10 -10 -9 -9 -9 -8 -8 -8 -8 -7 -7 -7 -7 -6 -6 -6 -6 -6 -6 -5 -5 -5 -5 -5 -5 -5 -4 -4 -4 -4 -4 -4 -4 -4 -3 -3 -3 -2 -1 -1 -1 ---------- Run | Jun Mat Min Mat Min Exi Min Mat Gar Mat Fac Low Low Dat Pro Fac Low Low Zio Dee Pro Fac Was Fac Upp Upp Zhi Pro Fac Was Fac Ext Cet Arc Hub Res Arm Lab Res Acc Com Ac0 Machines Disabled 54 | . . . 3 2 . . . . 1 . . . 1 . 5 . . . 2 . 2 . 2 . . . . . . 1 5 1 2 14 . . 1 . . 5 7 Max in Single Turn 8 | . . . 1 2 . . . . 1 . . . 1 . 2 . . . 1 . 1 . 1 . . . . . . 1 1 1 1 8 . . 1 . . 1 1 Garrison Access 14 | . . . . . . . . . . 1 . . . . 1 . . . . . 2 . 2 . . . . 2 . 2 . . . . 1 . . 2 1 . . Network Hub 2 | . . . . . . . . . . . . . . . . . . . . . . . . . . . . . . . . . . 2 . . . . . . . Machines Repaired . | . . . . . . . . . . . . . . . . . . . . . . . . . . . . . . . . . . . . . . . . . . Machines Sabotaged . | . . . . . . . . . . . . . . . . . . . . . . . . . . . . . . . . . . . . . . . . . . Overloaded Fab Kills . | . . . . . . . . . . . . . . . . . . . . . . . . . . . . . . . . . . . . . . . . . . Hacking | -11 -10 -10 -9 -9 -9 -8 -8 -8 -8 -7 -7 -7 -7 -6 -6 -6 -6 -6 -6 -5 -5 -5 -5 -5 -5 -5 -4 -4 -4 -4 -4 -4 -4 -4 -3 -3 -3 -2 -1 -1 -1 --------- Run | Jun Mat Min Mat Min Exi Min Mat Gar Mat Fac Low Low Dat Pro Fac Low Low Zio Dee Pro Fac Was Fac Upp Upp Zhi Pro Fac Was Fac Ext Cet Arc Hub Res Arm Lab Res Acc Com Ac0 Machines Accessed 196 | . 10 1 4 . 2 . 3 2 1 7 . . 3 . 25 1 . 1 . . 25 . 10 1 . 4 . 8 . 23 13 1 . 2 8 4 . 18 16 3 . Terminals 113 | . 8 1 3 . . . 2 2 1 5 . . . . 15 . . . . . 10 . 2 . . . . 5 . 14 13 1 . 2 5 3 . 9 9 3 . Fabricators 28 | . . . . . . . . . . 1 . . . . 5 . . . . . 6 . 3 . . . . . . 4 . . . . 1 1 . 3 4 . . Repair Stations 16 | . . . . . . . . . . . . . . . 2 . . . . . 6 . 1 . . . . 1 . 1 . . . . 1 . . 2 2 . . Recycling Units 8 | . 2 . . . . . . . . . . . . . . . . . . . 1 . 1 . . . . . . 2 . . . . . . . 2 . . . Scanalyzers 5 | . . . 1 . . . . . . . . . . . 2 . . . . . . . 1 . . . . . . 1 . . . . . . . . . . . Garrison Access 14 | . . . . . . . 1 . . 1 . . . . 1 . . . . . 2 . 2 . . . . 2 . 1 . . . . 1 . . 2 1 . . Total Hacks 650 | . 33 3 7 . 2 . 8 4 1 14 . . 23 . 106 1 . 4 . . 65 . 36 1 . 17 . 30 . 75 22 2 . 11 37 23 . 65 56 4 . Successful 454 | . 6 2 2 . 2 . 3 . . 8 . . 23 . 61 1 . 4 . . 45 . 29 1 . 17 . 23 . 67 18 1 . 7 21 13 . 53 45 2 . Failed 189 | . 26 1 5 . . . 5 4 1 6 . . . . 44 . . . . . 19 . 7 . . . . 6 . 7 4 1 . 4 16 9 . 11 11 2 . Catastrophic 26 | . 4 . . . . . 1 . 1 1 . . . . 7 . . . . . 1 . 1 . . . . . . 2 1 . . . 1 2 . 1 1 2 . Database Lockouts 7 | . 1 . . . . . . . . . . . . . 1 . . . . . 1 . . . . . . 1 . 1 . . . . . 1 . 1 . . . Manual 267 | . 17 2 3 . 1 . 5 . 1 11 . . . . 52 . . 1 . . 20 . 6 . . . . 12 . 38 10 1 . 2 17 14 . 36 15 3 . Terminals 383 | . 28 3 6 . . . 6 4 1 11 . . . . 72 . . . . . 27 . 4 . . . . 26 . 48 22 2 . 11 27 19 . 38 24 4 . Fabricators 110 | . . . . . . . . . . 2 . . . . 22 . . . . . 15 . 15 . . . . . . 17 . . . . 4 4 . 12 19 . . Repair Stations 57 | . . . . . . . . . . . . . . . 6 . . . . . 16 . 4 . . . . 2 . 4 . . . . 5 . . 8 12 . . Recycling Units 19 | . 5 . . . . . . . . . . . . . . . . . . . 2 . 3 . . . . . . 4 . . . . . . . 5 . . . Scanalyzers 11 | . . . 1 . . . . . . . . . . . 4 . . . . . . . 5 . . . . . . 1 . . . . . . . . . . . Garrison Access 22 | . . . . . . . 2 . . 1 . . . . 2 . . . . . 5 . 5 . . . . 2 . 1 . . . . 1 . . 2 1 . . Terminal Hacks 234 | . 4 2 1 . 2 . 2 . . 2 . . 23 . 33 1 . 4 . . 13 . 1 1 . 17 . 17 . 31 18 1 . 6 9 9 . 21 15 1 . Record 13 | . . . . . 1 . . . . . . . 6 . . . . . . . . . . . . 5 . . . . . . . . 1 . . . . . . Part Schematic 39 | . . . . . . . . . . . . . 10 . 2 . . 4 . . 1 . . . . 4 . 3 . 2 4 . . 1 1 1 . 6 . . . Robot Schematic 5 | . . . . . . . . . . . . . 4 . 1 . . . . . . . . . . . . . . . . . . . . . . . . . . Robot Analysis 9 | . 2 1 . . . . 1 . . . . . . . . . . . . . . . . . . 4 . . . . . . . . . . . . 1 . . Prototype ID Bank 13 | . 1 . 1 . . . . . . . . . 3 . . . . . . . . . . . . 4 . 1 . 1 . . . . . 1 . . 1 . . Open Door 20 | . . . . . . . . . . . . . . . . 1 . . . . . . . 1 . . . . . 2 10 1 . . . 1 . . 3 1 . Open DSF 1 | . . . . . . . . . . . . . . . . . . . . . . . . . . . . . . . . . . . . . . 1 . . . Level Access Points 2 | . . . . . . . . . . . . . . . . . . . . . . . . . . . . . . . . . . 1 . . . 1 . . . Branch Access Points 10 | . . . . . . . 1 . . 1 . . . . 1 . . . . . 1 . 1 . . . . 1 . 1 . . . . 1 . . 1 1 . . Machine Index 3 | . . . . . . . . . . . . . . . . . . . . . . . . . . . . 1 . 1 . . . . 1 . . . . . . Terminal Index 7 | . . . . . . . . . . 1 . . . . 1 . . . . . 1 . . . . . . 1 . . . . . . 1 . . 1 1 . . Fabricator Index 2 | . . . . . . . . . . . . . . . 1 . . . . . . . . . . . . . . . . . . . . . . . 1 . . Repair Station Index 2 | . . . . . . . . . . . . . . . . . . . . . 1 . . . . . . . . . . . . . . . . . 1 . . Recycling Unit Index 2 | . . . . . . . . . . . . . . . . . . . . . . . . . . . . 1 . . . . . . . . . . 1 . . Scanalyzer Index 1 | . . . . . . . . . . . . . . . . . . . . . . . . . . . . 1 . . . . . . . . . . . . . Alert Level 8 | . . . . . . . . . . . . . . . 1 . . . . . . . . . . . . . . 2 . . . 1 1 1 . 1 1 . . Unreport Threat 20 | . . . . . . . . . . . . . . . 3 . . . . . . . . . . . . 1 . 2 3 . . 1 3 2 . 2 3 . . Locate Traps 22 | . . . . . . . . . . . . . . . 5 . . . . . 6 . . . . . . 2 . 5 . . . . . 1 . 3 . . . Maintenance Status 1 | . . . . . . . . . . . . . . . . . . . . . . . . . . . . 1 . . . . . . . . . . . . . Transport Status 3 | . . . . . . . . . . . . . . . 3 . . . . . . . . . . . . . . . . . . . . . . . . . . Recall Investigation 11 | . . . . . . . . . . . . . . . 4 . . . . . 1 . . . . . . . . 2 . . . . . 1 . 3 . . . Recall Extermination 9 | . . . . . . . . . . . . . . . 3 . . . . . 1 . . . . . . . . 3 . . . . . . . 1 1 . . Recall Reinforcements 3 | . . . . . . . . . . . . . . . 2 . . . . . . . . . . . . . . . . . . . . 1 . . . . . Recall Assault 1 | . . . . . . . . . . . . . . . . . . . . . . . . . . . . . . 1 . . . . . . . . . . . Hauler Manifests 4 | . 1 . . . . . . . . . . . . . 2 . . . . . . . . . . . . 1 . . . . . . . . . . . . . Registered Components 1 | . . . . . . . . . . . . . . . . . . . . . . . . . . . . 1 . . . . . . . . . . . . . Zone Layout 21 | . . 1 . . . . . . . . . . . . 4 . . . . . 1 . . . . . . 2 . 9 1 . . 2 . . . 1 . . . EX-Prototype ID Bank 1 | . . . . . 1 . . . . . . . . . . . . . . . . . . . . . . . . . . . . . . . . . . . . Fabricator Hacks 69 | . . . . . . . . . . 1 . . . . 9 . . . . . 9 . 11 . . . . . . 13 . . . . 3 3 . 9 11 . . Network Status 6 | . . . . . . . . . . 1 . . . . . . . . . . 1 . 1 . . . . . . . . . . . 1 1 . 1 . . . Load Schematic 37 | . . . . . . . . . . . . . . . 5 . . . . . 5 . 6 . . . . . . 7 . . . . 1 1 . 5 7 . . Build 26 | . . . . . . . . . . . . . . . 4 . . . . . 3 . 4 . . . . . . 6 . . . . 1 1 . 3 4 . . Repair Station Hacks 49 | . . . . . . . . . . . . . . . 3 . . . . . 14 . 4 . . . . 2 . 4 . . . . 4 . . 8 10 . . Scan Component 24 | . . . . . . . . . . . . . . . 2 . . . . . 7 . 2 . . . . . . 2 . . . . 2 . . 4 5 . . Repair 23 | . . . . . . . . . . . . . . . 1 . . . . . 7 . 2 . . . . . . 2 . . . . 2 . . 4 5 . . Refit 2 | . . . . . . . . . . . . . . . . . . . . . . . . . . . . 2 . . . . . . . . . . . . . Recycling Unit Hacks 9 | . 2 . . . . . . . . . . . . . . . . . . . 1 . 2 . . . . . . 2 . . . . . . . 2 . . . Retrieve Components 9 | . 2 . . . . . . . . . . . . . . . . . . . 1 . 2 . . . . . . 2 . . . . . . . 2 . . . Scanalyzer 9 | . . . . . . . . . . . . . . . 4 . . . . . . . 5 . . . . . . . . . . . . . . . . . . Insert Component 4 | . . . . . . . . . . . . . . . 2 . . . . . . . 2 . . . . . . . . . . . . . . . . . . Analyze 5 | . . . . . . . . . . . . . . . 2 . . . . . . . 3 . . . . . . . . . . . . . . . . . . Garrison Access Hacks 12 | . . . . . . . 1 . . 1 . . . . 1 . . . . . 1 . 1 . . . . 2 . 1 . . . . 1 . . 2 1 . . Unlock Access 1 | . . . . . . . 1 . . . . . . . . . . . . . . . . . . . . . . . . . . . . . . . . . . Seal Access 11 | . . . . . . . . . . 1 . . . . 1 . . . . . 1 . 1 . . . . 2 . 1 . . . . 1 . . 2 1 . . Unauthorized Hacks 72 | . . . 1 . . . . . . 4 . . . . 11 . . . . . 7 . 5 . . . . 2 . 16 . . . 1 4 1 . 11 8 1 . Terminals 35 | . . . . . . . . . . 3 . . . . 6 . . . . . 1 . . . . . . 2 . 9 . . . 1 3 . . 5 4 1 . Track 7 | . . . . . . . . . . . . . . . 1 . . . . . . . . . . . . . . 2 . . . . . . . 2 2 . . Assimilate 13 | . . . . . . . . . . 3 . . . . . . . . . . . . . . . . . . . 4 . . . . 3 . . 1 2 . . Botnet 8 | . . . . . . . . . . . . . . . 2 . . . . . 1 . . . . . . 1 . 2 . . . . . . . 1 . 1 . Disrupt 1 | . . . . . . . . . . . . . . . 1 . . . . . . . . . . . . . . . . . . . . . . . . . . Operators 5 | . . . . . . . . . . . . . . . 2 . . . . . . . . . . . . 1 . 1 . . . . . . . 1 . . . Sabotage 1 | . . . . . . . . . . . . . . . . . . . . . . . . . . . . . . . . . . 1 . . . . . . . Fabricators 28 | . . . . . . . . . . 1 . . . . 5 . . . . . 5 . 4 . . . . . . 4 . . . . 1 1 . 3 4 . . Prioritize 12 | . . . . . . . . . . . . . . . 4 . . . . . 2 . 1 . . . . . . 1 . . . . 1 1 . 1 1 . . Haulers 3 | . . . . . . . . . . 1 . . . . 1 . . . . . . . 1 . . . . . . . . . . . . . . . . . . Download 1 | . . . . . . . . . . . . . . . . . . . . . 1 . . . . . . . . . . . . . . . . . . . . Recompile 12 | . . . . . . . . . . . . . . . . . . . . . 2 . 2 . . . . . . 3 . . . . . . . 2 3 . . Repair Stations . | . . . . . . . . . . . . . . . . . . . . . . . . . . . . . . . . . . . . . . . . . . Recycling Units 7 | . . . . . . . . . . . . . . . . . . . . . 1 . 1 . . . . . . 2 . . . . . . . 3 . . . Recyclers 1 | . . . . . . . . . . . . . . . . . . . . . . . . . . . . . . . . . . . . . . 1 . . . Mask 6 | . . . . . . . . . . . . . . . . . . . . . 1 . 1 . . . . . . 2 . . . . . . . 2 . . . Scanalyzers 2 | . . . 1 . . . . . . . . . . . . . . . . . . . . . . . . . . 1 . . . . . . . . . . . Researchers 2 | . . . 1 . . . . . . . . . . . . . . . . . . . . . . . . . . 1 . . . . . . . . . . . Garrison Access . | . . . . . . . . . . . . . . . . . . . . . . . . . . . . . . . . . . . . . . . . . . Data Cores Recovered 1 | . 1 . . . . . . . . . . . . . . . . . . . . . . . . . . . . . . . . . . . . . . . . Used . | . . . . . . . . . . . . . . . . . . . . . . . . . . . . . . . . . . . . . . . . . . Hacking Detections 127 | . 10 1 4 . . . 3 2 1 6 . . . . 23 . . . . . 17 . 8 . . . . 5 . 12 4 . . 2 7 2 . 9 8 3 . Full Trace Events 16 | . 1 . . . . . 1 . . . . . . . 6 . . . . . 2 . . . . . . . . 2 . . . . 1 1 . 1 1 . . Feedback Events 1 | . . . . . . . . . . . . . . . 1 . . . . . . . . . . . . . . . . . . . . . . . . . . Corruption 1 | . . . . . . . . . . . . . . . 1 . . . . . . . . . . . . . . . . . . . . . . . . . . Feedback Blocked . | . . . . . . . . . . . . . . . . . . . . . . . . . . . . . . . . . . . . . . . . . . Robot Schematics Acquired 8 | . . . . . . . . . . . . . 4 . 1 . . 3 . . . . . . . . . . . . . . . . . . . . . . . Robots Built 2 | . . . . . . . . . . . . . . . . . . . . . . . 2 . . . . . . . . . . . . . . . . . . Authchips 1 | . . . . . . . . . . . . . . . . . . . . . . . 1 . . . . . . . . . . . . . . . . . . Time 169 | . . . . . . . . . . . . . . . . . . . . . . . 169 . . . . . . . . . . . . . . . . . . Total Robot Build Rating 12 | . . . . . . . . . . . . . . . . . . . . . . . 12 . . . . . . . . . . . . . . . . . . Part Schematics Acquired 55 | . . . . . . . . . . . . . 10 . 3 . . 17 . . 2 . 2 . . 4 . 3 . 2 4 . . 1 1 1 . 5 . . . Parts Built 31 | . . . . . . . . . . . . . . . 5 . . . . . 3 . 3 . . . . . . 10 . . . . 2 1 . 3 4 . . Authchips 13 | . . . . . . . . . . . . . . . . . . . . . 2 . 3 . . . . . . 3 . . . . . . . 2 3 . . Time 1677 | . . . . . . . . . . . . . . . 364 . . . . . 354 . 159 . . . . . . 369 . . . . 14 93 . 156 168 . . Total Part Build Rating 216 | . . . . . . . . . . . . . . . 32 . . . . . 15 . 18 . . . . . . 87 . . . . 8 7 . 25 24 . . Parts Repaired 23 | . . . . . . . . . . . . . . . 1 . . . . . 7 . 2 . . . . . . 2 . . . . 2 . . 4 5 . . Time 839 | . . . . . . . . . . . . . . . 26 . . . . . 386 . 69 . . . . . . 77 . . . . 48 . . 115 118 . . Parts Recycled . | . . . . . . . . . . . . . . . . . . . . . . . . . . . . . . . . . . . . . . . . . . Recycled Matter . | . . . . . . . . . . . . . . . . . . . . . . . . . . . . . . . . . . . . . . . . . . Retrieved Matter . | . . . . . . . . . . . . . . . . . . . . . . . . . . . . . . . . . . . . . . . . . . Retrieved Components 47 | . 9 . . . . . . . . . . . . . . . . . . . 8 . 10 . . . . . . 8 . . . . . . . 12 . . . Parts Scanalyzed 3 | . . . . . . . . . . . . . . . 1 . . . . . . . 2 . . . . . . . . . . . . . . . . . . Part Schematics Acquired 3 | . . . . . . . . . . . . . . . 1 . . . . . . . 2 . . . . . . . . . . . . . . . . . . Parts Damaged 1 | . . . . . . . . . . . . . . . . . . . . . . . 1 . . . . . . . . . . . . . . . . . . Bothacking | -11 -10 -10 -9 -9 -9 -8 -8 -8 -8 -7 -7 -7 -7 -6 -6 -6 -6 -6 -6 -5 -5 -5 -5 -5 -5 -5 -4 -4 -4 -4 -4 -4 -4 -4 -3 -3 -3 -2 -1 -1 -1 ------------ Run | Jun Mat Min Mat Min Exi Min Mat Gar Mat Fac Low Low Dat Pro Fac Low Low Zio Dee Pro Fac Was Fac Upp Upp Zhi Pro Fac Was Fac Ext Cet Arc Hub Res Arm Lab Res Acc Com Ac0 Used RIF Installer . | . . . . . . . . . . . . . . . . . . . . . . . . . . . . . . . . . . . . . . . . . . Robots Hacked 2 | . . . . . . . . . . . . . . . . . . . . . 1 . . . . . . 1 . . . . . . . . . . . . . Non-combat 2 | . . . . . . . . . . . . . . . . . . . . . 1 . . . . . . 1 . . . . . . . . . . . . . Combat . | . . . . . . . . . . . . . . . . . . . . . . . . . . . . . . . . . . . . . . . . . . Robot Hacks Applied 2 | . . . . . . . . . . . . . . . . . . . . . 1 . . . . . . 1 . . . . . . . . . . . . . find_chute 2 | . . . . . . . . . . . . . . . . . . . . . 1 . . . . . . 1 . . . . . . . . . . . . . Relay Couplers Released 6 | . . . . . . . . . . . . . . . . . . . . . 2 . 2 . . . . . . 2 . . . . . . . . . . . Machine Destruction 6 | . . . . . . . . . . . . . . . . . . . . . 2 . 2 . . . . . . 2 . . . . . . . . . . . Fabnet Peak Effective % . | . . . . . . . . . . . . . . . . . . . . . . . . . . . . . . . . . . . . . . . . . . Robots Rewired 3 | . . . . . . . . . . . . . . . . . . . . . . . . . . . . . . . 3 . . . . . . . . . . Allies Hacked . | . . . . . . . . . . . . . . . . . . . . . . . . . . . . . . . . . . . . . . . . . . Hacks Repelled . | . . . . . . . . . . . . . . . . . . . . . . . . . . . . . . . . . . . . . . . . . . Allies | -11 -10 -10 -9 -9 -9 -8 -8 -8 -8 -7 -7 -7 -7 -6 -6 -6 -6 -6 -6 -5 -5 -5 -5 -5 -5 -5 -4 -4 -4 -4 -4 -4 -4 -4 -3 -3 -3 -2 -1 -1 -1 -------- Run | Jun Mat Min Mat Min Exi Min Mat Gar Mat Fac Low Low Dat Pro Fac Low Low Zio Dee Pro Fac Was Fac Upp Upp Zhi Pro Fac Was Fac Ext Cet Arc Hub Res Arm Lab Res Acc Com Ac0 Total Allies 43 | . . . . . . . . . . 2 . . . . . . . 5 . . . . 2 . . . . . 1 3 20 5 . . 2 . . 1 2 . . Largest Group 10 | . . . . . . . . . . 2 2 . . . . . . 5 5 . . . 2 . . . . . 1 3 9 10 9 6 2 1 . 1 1 . . Highest-Rated Group 778 | . . . . . . . . . . 36 36 . . . . . . 290 290 . . . 108 . . . . . 46 62 485 778 622 511 90 45 . 26 45 . . Highest-Rated Ally 159 | . . . . . . . . . . 26 26 . . . . . . 96 96 . . . 54 . . . . . 46 26 159 159 96 96 45 45 . 26 45 . . Warlord Squad Rendezvous 5 | . . . . . . . . . . . . . . . 1 . . . . . 1 . 2 . . . . . . . . . . 1 . . . . . . . Dakka 2 | . . . . . . . . . . . . . . . . . . . . . . . 1 . . . . . . . . . . 1 . . . . . . . Infantry 1 | . . . . . . . . . . . . . . . . . . . . . . . 1 . . . . . . . . . . . . . . . . . . Muscle 2 | . . . . . . . . . . . . . . . 1 . . . . . 1 . . . . . . . . . . . . . . . . . . . . Total Orders 44 | . . . . . . . . . . . 3 . . . 10 . . . 1 . . . 1 . . . . . . 21 . . . . 4 . . 1 3 . . STAY 21 | . . . . . . . . . . . 1 . . . 3 . . . . . . . 1 . . . . . . 11 . . . . 2 . . 1 2 . . ROAM 1 | . . . . . . . . . . . 1 . . . . . . . . . . . . . . . . . . . . . . . . . . . . . . FOLLOW 14 | . . . . . . . . . . . 1 . . . . . . . . . . . . . . . . . . 10 . . . . 2 . . . 1 . . RETURN 8 | . . . . . . . . . . . . . . . 7 . . . 1 . . . . . . . . . . . . . . . . . . . . . . Ally Attacks 221 | . . . . . . . . . . . . . . . 24 . . . 48 . . . 12 . . . . . . . 29 43 17 48 . . . . . . . Total Damage 7711 | . . . . . . . . . . . . . . . 424 . . . 1136 . . . 284 . . . . . . . 1110 2017 764 1976 . . . . . . . Kills 40 | . . . . . . . . . . . . . . . 3 . . . 2 . . . 3 . . . . . . . 5 11 3 13 . . . . . . . Allies Corrupted 6 | . . . . . . . . . . . . . . . . . . . . . . . . . . . . . . . 4 . . 2 . . . . . . . Allies Melted . | . . . . . . . . . . . . . . . . . . . . . . . . . . . . . . . . . . . . . . . . . . Intel | -11 -10 -10 -9 -9 -9 -8 -8 -8 -8 -7 -7 -7 -7 -6 -6 -6 -6 -6 -6 -5 -5 -5 -5 -5 -5 -5 -4 -4 -4 -4 -4 -4 -4 -4 -3 -3 -3 -2 -1 -1 -1 ------- Run | Jun Mat Min Mat Min Exi Min Mat Gar Mat Fac Low Low Dat Pro Fac Low Low Zio Dee Pro Fac Was Fac Upp Upp Zhi Pro Fac Was Fac Ext Cet Arc Hub Res Arm Lab Res Acc Com Ac0 Robot Analysis Total 9 | . 2 1 . . . . 1 . . . . . . . . . . . . . . . . . . 4 . . . . . . . . . . . . 1 . . Derelict Logs Recovered 15 | . . 2 . 1 . . . . . . 1 2 . 3 . 1 1 1 . 2 . . . 1 . . . . . . . . . . . . . . . . . Drone Launches 11 | . . . . . . . . . . . . . . . 9 . . . 2 . . . . . . . . . . . . . . . . . . . . . . Drone Recoveries 11 | . . . . . . . . . . . . . . . 9 . . . 2 . . . . . . . . . . . . . . . . . . . . . . Exploration | -11 -10 -10 -9 -9 -9 -8 -8 -8 -8 -7 -7 -7 -7 -6 -6 -6 -6 -6 -6 -5 -5 -5 -5 -5 -5 -5 -4 -4 -4 -4 -4 -4 -4 -4 -3 -3 -3 -2 -1 -1 -1 ------------- Run | Jun Mat Min Mat Min Exi Min Mat Gar Mat Fac Low Low Dat Pro Fac Low Low Zio Dee Pro Fac Was Fac Upp Upp Zhi Pro Fac Was Fac Ext Cet Arc Hub Res Arm Lab Res Acc Com Ac0 Turns Passed 31819 | 300 1238 614 1428 711 823 998 662 1919 577 260 346 137 51 72 2264 137 68 321 421 186 1783 134 1395 208 231 82 305 273 16 2317 996 300 476 388 783 340 238 1180 1664 4531 646 Spaces Moved 36934 | 147 662 300 459 274 344 406 232 507 206 618 492 404 112 223 4077 340 222 925 852 363 3042 374 2893 439 352 164 683 575 67 3803 651 262 224 490 1231 193 220 1639 2545 3852 1070 Core 5 | 5 . . . . . . . . . . . . . . . . . . . . . . . . . . . . . . . . . . . . . . . . . Treads 3532 | 142 662 300 459 274 344 406 232 507 206 . . . . . . . . . . . . . . . . . . . . . . . . . . . . . . . . Legs . | . . . . . . . . . . . . . . . . . . . . . . . . . . . . . . . . . . . . . . . . . . Wheels . | . . . . . . . . . . . . . . . . . . . . . . . . . . . . . . . . . . . . . . . . . . Hover 13158 | . . . . . . . . . . . . . . . . . . . . . . . . . . . . . . 781 651 262 224 490 1231 193 220 1639 2545 3852 1070 Flight 20239 | . . . . . . . . . . 618 492 404 112 223 4077 340 222 925 852 363 3042 374 2893 439 352 164 683 575 67 3022 . . . . . . . . . . . Fastest Speed 17 | 50 160 160 240 240 240 240 240 235 236 29 29 29 29 29 26 17 27 27 20 27 20 28 28 28 28 28 21 26 19 19 44 44 44 44 40 40 40 32 32 32 32 Average Speed 53 | 156 160 187 240 240 240 240 240 236 236 30 29 29 29 29 28 26 27 27 28 27 27 28 28 28 28 28 27 26 22 30 68 45 44 44 40 40 52 36 32 70 32 Slowest Speed 320 | 160 160 320 240 240 240 240 240 312 236 311 29 29 29 29 97 27 27 27 100 27 29 28 100 28 100 28 28 26 26 144 144 144 144 44 40 40 140 140 140 140 34 Overloaded Moves 112 | . . . . . . . . . . . . . . . . 11 . . 2 . 49 . . . . . 7 . 36 7 . . . . . . . . . . . Propulsion Burnouts . | . . . . . . . . . . . . . . . . . . . . . . . . . . . . . . . . . . . . . . . . . . Robots Hopped 45 | . . . . . . . . . . . . . 1 . 9 . . . . . 6 . 7 . . . . 1 . 21 . . . . . . . . . . . Cave-ins Triggered 1 | . . . . . . . . . . . . . . . . . . . . . 1 . . . . . . . . . . . . . . . . . . . . Teleports 3 | . . . . . . . . . . . . . . . . . . . . . . . . . . . . . . . . . . . . 1 . . . 1 1 Exploration Rate (%) 53 | 4 96 65 45 59 69 80 25 56 26 14 64 58 76 45 53 54 43 86 80 44 61 93 30 63 47 60 60 16 61 46 63 66 80 42 25 8 75 30 42 90 49 Regions Visited 41 Branch Regions 25 Pre-discovered Areas 12 | . . 1 . . 1 . . . . . 1 . 1 1 . . . 3 . . . . . 1 . 3 . . . . . . . . . . . . . . . Known Exits Taken 18 | . . . . . . . 1 . . 1 . . . . 1 1 1 1 1 1 . . 1 1 1 1 1 . . 1 . . . 1 1 . . 1 1 . . Unknown Exits Taken 18 | 1 1 1 1 1 1 1 . . 1 . 1 1 1 1 . . . . . . . . . . . . . . . . 1 1 1 . . 1 1 . . 1 . Scrap Searched 24 | . . 1 . 2 . 1 . . . . 6 2 . . . . 2 3 . . . . . 1 4 . 2 . . . . . . . . . . . . . . Spaces Dug 486 | . . . 1 36 . . 1 . . 5 7 6 1 2 62 . . 2 13 13 75 . 25 1 9 . 6 10 . 91 6 . . 4 17 4 . 38 36 15 . Terrain Destroyed 1111 | . . . 19 93 . 9 1 2 8 5 7 6 1 2 78 47 . 2 22 15 89 . 31 1 17 . 21 19 . 132 23 . . 303 29 6 . 55 53 15 . Melee 335 | . . . 1 . . . 1 . . 5 7 6 1 2 50 . . 2 . 9 66 . 22 1 7 . 5 8 . 51 . . . 4 7 . . 32 33 15 . Projectile 235 | . . . . 1 . . . . . . . . . . 28 . . . . 6 22 . 9 . 10 . 5 11 . 53 23 . . . 22 6 . 21 18 . . AOE 536 | . . . 18 92 . 9 . 2 8 . . . . . . 47 . . 22 . . . . . . . 11 . . 28 . . . 299 . . . . . . . Terrain Rammed . | . . . . . . . . . . . . . . . . . . . . . . . . . . . . . . . . . . . . . . . . . . Walls Destroyed . | . . . . . . . . . . . . . . . . . . . . . . . . . . . . . . . . . . . . . . . . . . Machines Disabled . | . . . . . . . . . . . . . . . . . . . . . . . . . . . . . . . . . . . . . . . . . . Actions | -11 -10 -10 -9 -9 -9 -8 -8 -8 -8 -7 -7 -7 -7 -6 -6 -6 -6 -6 -6 -5 -5 -5 -5 -5 -5 -5 -4 -4 -4 -4 -4 -4 -4 -4 -3 -3 -3 -2 -1 -1 -1 --------- Run | Jun Mat Min Mat Min Exi Min Mat Gar Mat Fac Low Low Dat Pro Fac Low Low Zio Dee Pro Fac Was Fac Upp Upp Zhi Pro Fac Was Fac Ext Cet Arc Hub Res Arm Lab Res Acc Com Ac0 Total 47277 | 177 761 330 652 303 345 419 293 1141 259 688 682 415 122 226 5052 376 228 981 987 432 3837 388 3377 519 464 197 784 667 67 4787 1109 370 523 634 1478 441 337 2113 3323 5654 1339 Wait 7240 | . 25 4 65 4 . 1 12 560 23 15 173 2 4 . 760 23 2 42 56 51 577 . 340 75 89 15 84 28 . 753 304 12 238 84 164 223 76 307 539 1478 32 Move 36807 | 147 661 299 458 273 343 405 232 504 205 617 491 403 109 222 4059 339 221 924 851 362 3030 373 2879 438 351 163 682 573 66 3761 650 261 223 489 1230 192 219 1638 2544 3851 1069 Hop 42 | . . . . . . . . . . . . . 1 . 8 . . . . . 6 . 6 . . . . 1 . 20 . . . . . . . . . . . Pick Up 252 | 1 17 5 16 2 1 2 7 7 3 5 1 1 . . 15 . 1 . 2 . 5 . 13 1 . 2 . 2 1 23 6 13 1 4 8 1 12 18 16 28 12 Fast Attach 170 | 8 1 . 3 . . . 2 6 1 4 . . . . 10 . 1 . 14 . 23 . 11 . . 7 . . . 7 . 5 7 3 3 2 4 9 17 14 8 Attach 179 | . 2 2 5 . . . 7 11 . 12 . . 1 . 14 2 1 . 4 . 7 . 6 . 2 . 2 5 . 8 1 7 1 2 10 2 2 6 23 23 11 Detach 113 | 1 . . 2 . . . . 1 1 2 . . . . 14 2 . . 7 . 6 . 5 . 2 . 2 4 . 9 . 3 1 1 6 3 1 4 15 18 3 Swap 301 | . 4 1 20 3 . 2 6 5 4 . 6 . 1 1 40 1 . 2 . 2 25 2 25 2 2 . 2 7 . 24 19 4 5 3 3 2 1 18 27 26 6 Drop 284 | . 5 4 14 3 1 2 5 . 2 23 1 1 . . 21 . 1 . 13 . 12 . 11 . . 8 . 1 . 17 6 13 7 7 7 2 12 22 15 40 8 Fire 839 | 17 39 12 65 16 . 5 21 44 19 . . . . . 31 5 . . 26 6 38 10 12 . 10 . 6 16 . 91 83 49 40 8 36 14 10 47 43 16 4 Melee 940 | . . . 2 . . . 1 . . 10 10 8 6 3 80 4 1 13 14 11 96 3 69 3 8 2 6 14 . 74 . 3 . 20 11 . . 44 78 160 186 Ram . | . . . . . . . . . . . . . . . . . . . . . . . . . . . . . . . . . . . . . . . . . . Kick . | . . . . . . . . . . . . . . . . . . . . . . . . . . . . . . . . . . . . . . . . . . Crush 20 | 3 7 3 2 2 . 2 . . 1 . . . . . . . . . . . . . . . . . . . . . . . . . . . . . . . . Escape Stasis 75 | . . . . . . . . 2 . . . . . . . . . . . . 12 . . . . . . 16 . . 26 . . 13 . . . . 6 . . Rewire 15 | . . . . . . . . 1 . . . . . . . . . . . . . . . . . . . . . . 14 . . . . . . . . . . Trap . | . . . . . . . . . . . . . . . . . . . . . . . . . . . . . . . . . . . . . . . . . . Miscellaneous . | . . . . . . . . . . . . . . . . . . . . . . . . . . . . . . . . . . . . . . . . . . Route ------- -11/Junkyard -10/Materials (discovered 4 exits: *Mat x3 / *Min) -10/Mines -9/Materials (discovered 2 exits: *Mat / [*Min]) -9/Mines -9/Exiles -8/Mines (discovered 2 exits: *Mat x2) -8/Materials -8/Garrison (discovered 3 exits: *Mat x3) -8/Materials -7/Factory (discovered 2 exits: *Low x2) -7/Lower Caves -7/Lower Caves -7/Data Miner -6/Proximity Caves -6/Factory (discovered 6 exits: *Fac x4 / *Low x2) -6/Lower Caves -6/Lower Caves (discovered 2 exits: *Fac / *Zio) -6/Zion (discovered 2 exits: *Dee / [*Pro]) -6/Deep Caves -5/Proximity Caves -5/Factory (discovered 4 exits: *Fac x2 / *Upp x2) -5/Waste -5/Factory (discovered 3 exits: *Fac / *Upp x2) -5/Upper Caves -5/Upper Caves -5/Zhirov -4/Proximity Caves -4/Factory (discovered 5 exits: *Res / *Upp x2 / Ext x2) -4/Waste -4/Factory (discovered 6 exits: *Res x2 / *Upp x2 / *Ext x2) -4/Extension (discovered 2 exits: *Res / *Cet) -4/Cetus (discovered 2 exits: *Res / [*Arc]) -4/Archives (discovered 3 exits: *Res / *Hub x2) -4/Hub_04(d) (discovered 4 exits: *Res x4) -3/Research (discovered 4 exits: *Res / *Arm / Qua x2) -3/Armory (discovered 2 exits: *Res / [*Lab]) -3/Lab -2/Research (discovered 5 exits: *Acc x3 / *Tes x2) -1/Access (discovered 2 exits: [Sur] / *Com) -1/Command (discovered 3 exits: [*Sur x2] / [*Ac0]) -1/Access_0 Near Former Tau Ceti IV History --------- Turn | Location | Event 23 | -11/Junkyard | Discovered new exit (range 15) 301 | -11/Junkyard | Entered Materials 302 | -10/Materials | Build established: Mutant 621 | -10/Materials | Discovered new exit (range 3) 788 | -10/Materials | Discovered new exit (range 12) 948 | -10/Materials | Discovered new exit (range 10) 1015 | -10/Materials | Central database locked down 1095 | -10/Materials | Discovered new exit (range 11) 1539 | -10/Materials | Entered Mines 1909 | -10/Mines | A weapon hastily lodged in a ceiling crevice suddenly fell to the ground 1920 | -10/Mines | Learned Materials trap positions 1947 | -10/Mines | Received a Rocket Launcher from a helpful Derelict 2032 | -10/Mines | Learned Materials trap positions 2134 | -10/Mines | Discovered new exit (range 7) 2138 | -10/Mines | Learned location of Storage (-9) 2153 | -10/Mines | Entered Materials 2153 | -9/Materials | Evolved 2 slots: Propulsion x2 2154 | -9/Materials | Loaded intel: 21 trap records 2454 | -9/Materials | Build established: Scavenger-Mutant 2885 | -9/Materials | Destroyed 10 combat bots 2982 | -9/Materials | Discovered new exit (range 10) 3472 | -9/Materials | Discovered new exit (range 6) 3581 | -9/Materials | Entered Mines 3864 | -9/Mines | Learned Materials stockpile data 4039 | -9/Mines | Assembled infested the area 4282 | -9/Mines | Deemed a non-threat by the Exiles lab entrance 4282 | -9/Mines | Discovered new exit (range 5) 4292 | -9/Mines | Entered Exiles 4352 | -9/Exiles | Met 8R-AWN 4391 | -9/Exiles | Met EX-HEX 4472 | -9/Exiles | Met EX-BIN 4501 | -9/Exiles | Met EX-DEC 4736 | -9/Exiles | Learned location of Zion (-6) 4816 | -9/Exiles | Aligned with FarCom system 4818 | -9/Exiles | Given EX-Vault access code 4873 | -9/Exiles | Opened EX-Vault 4892 | -9/Exiles | Found Longsword +1 4942 | -9/Exiles | Warned to stay clear of 0b10 Research branches 5096 | -9/Exiles | Discovered new exit (range 10) 5115 | -9/Exiles | Left Exiles lab with Longsword +1 5115 | -9/Exiles | Entered Mines 5280 | -8/Mines | Discovered new exit (range 10) 5979 | -8/Mines | Discovered new exit (range 6) 6113 | -8/Mines | Entered Materials 6113 | -8/Materials | Evolved 2 slots: Utility x2 6114 | -8/Materials | Loaded intel: 24 trap records 6359 | -8/Materials | Lost 3 parts (2n1u) 6775 | -8/Materials | Identified exit to Garrison 6775 | -8/Materials | Entered Garrison 6877 | -8/Garrison | Triggered checkpoint 6878 | -8/Garrison | Triggered checkpoint 6951 | -8/Garrison | Spotted B-75 Beast 6976 | -8/Garrison | Destroyed B-75 Beast 7004 | -8/Garrison | Lost 11 parts (1p4n4u2w) 7029 | -8/Garrison | Spotted B-75 Beast 7133 | -8/Garrison | Discovered new exit (range 15) 7384 | -8/Garrison | Discovered new exit (range 10) 7995 | -8/Garrison | Attempted to access garrison exit controls, blocked by remote lockdown 8224 | -8/Garrison | Attempted to access garrison exit controls, blocked by remote lockdown 8331 | -8/Garrison | Triggered checkpoint 8617 | -8/Garrison | Discovered new exit (range 10) 8694 | -8/Garrison | Entered Materials 9122 | -8/Materials | Discovered new exit (range 15) 9271 | -8/Materials | Entered Factory 9271 | -7/Factory | Evolved 2 slots: Utility x2 9326 | -7/Factory | Identified exit to Lower Caves 9531 | -7/Factory | Entered Lower Caves 9531 | -7/Lower Caves | Accompanied by 2 allies 9537 | -7/Lower Caves | Met a Warlord Commander 9538 | -7/Lower Caves | Learned location of Warlord (-4) 9540 | -7/Lower Caves | Found Encrypted Comm Array 9561 | -7/Lower Caves | Build established: Hacker-Sprinter 9588 | -7/Lower Caves | Spotted B-75 Beast 9617 | -7/Lower Caves | Learned Factory stockpile data 9846 | -7/Lower Caves | Discovered new exit (range 14) 9877 | -7/Lower Caves | Entered another Lower Caves area 9890 | -7/Lower Caves | Learned 12 Factory zone layouts 9968 | -7/Lower Caves | Discovered new exit (range 5) 9981 | -7/Lower Caves | Learned Factory emergency access door positions 10014 | -7/Lower Caves | Entered Data Miner 10014 | -7/Data Miner | Discovered new exit (range 6) 10020 | -7/Data Miner | Met Data Miner 10026 | -7/Data Miner | Learned location of Section 7 (-3) 10026 | -7/Data Miner | Acquired the access code to Warlord's prototype stash 10030 | -7/Data Miner | Received God Mode back door access code from Data Miner 10044 | -7/Data Miner | Data Conduit disabled 10065 | -7/Data Miner | Entered Proximity Caves 10070 | -6/Proximity Caves | Attracted the attention of an 0b10 outpost 10100 | -6/Proximity Caves | Learned location of 1 exit from Lower Caves 10133 | -6/Proximity Caves | Discovered new exit (range 10) 10137 | -6/Proximity Caves | Entered Factory 10137 | -6/Factory | Evolved 2 slots: Utility x2 10138 | -6/Factory | Identified exit to Factory 10193 | -6/Factory | Identified exit to Lower Caves 10390 | -6/Factory | Fabricated Combat Drone Bay? 10477 | -6/Factory | Repaired Exp. Propulsion Shielding 10549 | -6/Factory | Central database locked down 11582 | -6/Factory | Fabricated Cld. Cesium-ion Thruster? 11652 | -6/Factory | Fabricated Hyp. Railgun? 11746 | -6/Factory | Fabricated Cld. Cesium-ion Thruster? 11779 | -6/Factory | Discovered exit to Factory (range 15) 11786 | -6/Factory | Joined by Warlord Muscle squad 12296 | -6/Factory | Build established: Hacker-Scout 12315 | -6/Factory | Found Prototype Processor 12315 | -6/Factory | Identified Exp. Signal Interpreter 12401 | -6/Factory | Entered Lower Caves 12402 | -6/Lower Caves | Identified exit to Lower Caves 12467 | -6/Lower Caves | Learned Factory security intel 12538 | -6/Lower Caves | Entered another Lower Caves area 12539 | -6/Lower Caves | Encountered a Warlord checkpoint 12545 | -6/Lower Caves | Discovered exit to Factory (range 8) 12548 | -6/Lower Caves | Learned Factory non-interactive machine intel 12605 | -6/Lower Caves | Discovered new exit (range 7) 12606 | -6/Lower Caves | Identified exit to Zion 12606 | -6/Lower Caves | Entered Zion 12619 | -6/Zion | System corruption cleaned by Quarantine Array 12624 | -6/Zion | Received a hallucinogenic algorithm 12625 | -6/Zion | Discovered new exit (range 11) 12670 | -6/Zion | Learned Factory emergency access door positions 12694 | -6/Zion | Given the Hacking Drone Bay 12740 | -6/Zion | Given A8's code to call for help 12740 | -6/Zion | Learned location of Armory (-3) 12833 | -6/Zion | Discovered new exit (range 5) 12833 | -6/Zion | Saw the warning signs outside the Deep Caves entrance 12851 | -6/Zion | Gained Derelict followers 12862 | -6/Zion | Build established: Sprinter 12875 | -6/Zion | Rebuked by Imprinter 12897 | -6/Zion | Enhanced Grunt warped into view, answering call for help 12905 | -6/Zion | Enhanced Grunt warped into view, answering call for help 12908 | -6/Zion | Identified exit to Deep Caves 12927 | -6/Zion | Entered Deep Caves 12927 | -6/Deep Caves | Accompanied by 5 allies 13034 | -6/Deep Caves | Attacked by Z-Imprinter 13059 | -6/Deep Caves | Destroyed Z-Imprinter 13070 | -6/Deep Caves | Found Prototype Protection 13070 | -6/Deep Caves | Identified Zio. Weapon Casing 13161 | -6/Deep Caves | Z-Facility disabled 13285 | -6/Deep Caves | Discovered new exit (range 6) 13348 | -6/Deep Caves | Identified exit to Proximity Caves 13348 | -6/Deep Caves | Entered Proximity Caves 13453 | -5/Proximity Caves | Learned Factory non-interactive machine intel 13519 | -5/Proximity Caves | Discovered exit to Factory (range 13) 13529 | -5/Proximity Caves | Build established: Hacker-Sprinter 13534 | -5/Proximity Caves | Entered Factory 13534 | -5/Factory | Evolved 2 slots: Utility x2 13537 | -5/Factory | Loaded intel: 176 non-interactive machine locations 13541 | -5/Factory | Identified exit to Upper Caves 13721 | -5/Factory | Repaired Lyr. Light Armor Plating 13909 | -5/Factory | Discovered new exit (range 7) 13911 | -5/Factory | Identified exit to Factory 13940 | -5/Factory | Crushed by falling debris 14097 | -5/Factory | Repaired Exp. Propulsion Shielding 14122 | -5/Factory | Fabricated Biomechanical Wings (x1) 14160 | -5/Factory | Spotted B-75 Beast 14237 | -5/Factory | Fabricated Biomechanical Wings? 14288 | -5/Factory | Repaired Cld. Cesium-ion Thruster? 14439 | -5/Factory | Discovered exit to Factory (range 6) 14441 | -5/Factory | Joined by Warlord Muscle squad 14571 | -5/Factory | Fabricated Biomechanical Wings? 14925 | -5/Factory | Central database locked down 15034 | -5/Factory | Search patrols dispatched 15072 | -5/Factory | Repaired Cld. Cesium-ion Thruster 15083 | -5/Factory | Repaired Cld. Cesium-ion Thruster? 15226 | -5/Factory | Repaired Lyr. Light Armor Plating 15307 | -5/Factory | Repaired Exp. Propulsion Shielding 15317 | -5/Factory | Sucked down chute 15317 | -5/Factory | Entered Waste 15317 | -5/Waste | The area was eerily silent 15390 | -5/Waste | A Compactor rumbled back to life 15391 | -5/Waste | Destroyed C-40 Crusher 15400 | -5/Waste | Discovered new exit (range 16) 15451 | -5/Waste | Identified exit to Factory 15451 | -5/Waste | Entered Factory 15452 | -5/Factory | Loaded intel: 246 non-interactive machine locations 15824 | -5/Factory | Joined by Warlord Dakka squad 15833 | -5/Factory | Fabricated P-70 Sage? 15902 | -5/Factory | P-70 Sage assimilated allied I5-QA7(s) 16083 | -5/Factory | Discovered exit to Factory (range 15) 16273 | -5/Factory | Repaired Lyr. Light Armor Plating? 16343 | -5/Factory | Repaired Broken Hyp. Railgun? 16372 | -5/Factory | Fabricated Adv. Hacking Suite? 16494 | -5/Factory | Fabricated Adv. Hacking Suite? 16745 | -5/Factory | Joined by Warlord Infantry squad 16836 | -5/Factory | Fabricated Adv. Hacking Suite (x1) 16846 | -5/Factory | Entered Upper Caves 16905 | -5/Upper Caves | Build established: Wizard-Sprinter 17052 | -5/Upper Caves | Discovered new exit (range 8) 17054 | -5/Upper Caves | Identified exit to Upper Caves 17054 | -5/Upper Caves | Entered another Upper Caves area 17283 | -5/Upper Caves | Discovered new exit (range 7) 17284 | -5/Upper Caves | Identified exit to Zhirov 17285 | -5/Upper Caves | Entered Zhirov 17285 | -5/Zhirov | Discovered new exit (range 3) 17291 | -5/Zhirov | Met Zhirov 17297 | -5/Zhirov | Learned location of Quarantine (-3) 17297 | -5/Zhirov | Learned location of Testing (-2) 17297 | -5/Zhirov | Learned location of Command (-1) 17299 | -5/Zhirov | Zhirov requested help retrieving the SGEMP Prototype 17304 | -5/Zhirov | Found Alien Artifact 17304 | -5/Zhirov | Identified Integrated Dissipator 17304 | -5/Zhirov | Installed Integrated Dissipator, increased core heat dissipation (+20) 17354 | -5/Zhirov | Found Alien Artifact 17366 | -5/Zhirov | Identified exit to Proximity Caves 17367 | -5/Zhirov | Entered Proximity Caves 17662 | -4/Proximity Caves | Discovered exit to Factory (range 8) 17672 | -4/Proximity Caves | Entered Factory 17672 | -4/Factory | Evolved 2 slots: Propulsion x1, Utility x1 17673 | -4/Factory | Identified exit to Extension 17724 | -4/Factory | Central database locked down 17736 | -4/Factory | Identified exit to Upper Caves 17825 | -4/Factory | Discovered new exit (range 4) 17945 | -4/Factory | Sucked down chute 17945 | -4/Factory | Entered Waste 17946 | -4/Waste | Met a frightened Derelict 17950 | -4/Waste | Spotted C-40 Crusher 17952 | -4/Waste | Spotted C-40 Crusher 17955 | -4/Waste | Spotted C-40 Crusher 17957 | -4/Waste | Spotted C-40 Crusher 17959 | -4/Waste | Discovered new exit (range 10) 17961 | -4/Waste | Entered Factory 17994 | -4/Factory | Central database locked down 18058 | -4/Factory | Fabricated Cmb. Linear Gravjet (x2) 18113 | -4/Factory | Fabricated Cmb. Linear Gravjet? 18394 | -4/Factory | Fabricated Lrn. Terrain Scanner? 18483 | -4/Factory | Repaired Adv. Cloaking Device 18525 | -4/Factory | Repaired Cld. Cesium-ion Thruster 18533 | -4/Factory | Discovered new exit (range 12) 18935 | -4/Factory | Fabricated Cmb. Linear Gravjet? 18965 | -4/Factory | Discovered new exit (range 14) 19640 | -4/Factory | Fabricated Cmb. Linear Gravjet (x2) 19879 | -4/Factory | Build established: Wizard-Mutant 20041 | -4/Factory | Found Quantum Capacitor 20219 | -4/Factory | Fabricated Exp. Terrain Scanner? 20278 | -4/Factory | Entered Extension 20278 | -4/Extension | Accompanied by 1 ally 20383 | -4/Extension | Rescued a captive Derelict 20522 | -4/Extension | Rescued A7 20570 | -4/Extension | Rescued a captive Derelict 20571 | -4/Extension | Rescued a captive Derelict 20576 | -4/Extension | Rescued a captive Derelict 20579 | -4/Extension | Rescued a captive Derelict 20589 | -4/Extension | Rescued a captive Derelict 20592 | -4/Extension | Rescued a captive Derelict 20643 | -4/Extension | Rescued a captive Derelict 20644 | -4/Extension | Rescued a captive Derelict 20754 | -4/Extension | Spotted B-86 Titan 20809 | -4/Extension | Rescued a captive Derelict 20933 | -4/Extension | Rescued a captive Derelict 20935 | -4/Extension | Rescued a captive Derelict 20974 | -4/Extension | Rescued a captive Derelict 21012 | -4/Extension | Rescued a captive Derelict 21012 | -4/Extension | Rescued a captive Derelict 21015 | -4/Extension | Rescued a captive Derelict 21193 | -4/Extension | Discovered new exit (range 10) 21193 | -4/Extension | Discovered new exit (range 6) 21274 | -4/Extension | Entered Cetus 21274 | -4/Cetus | Accompanied by 6 allies (A7) 21279 | -4/Cetus | Acquired a Cetus Manufacturing Module code from A7 21282 | -4/Cetus | Spotted Cetus Guard 21286 | -4/Cetus | Allies destroyed Cetus Guard 21288 | -4/Cetus | Spotted Cetus Guard 21288 | -4/Cetus | Spotted Cetus Guard 21292 | -4/Cetus | Spotted Cetus Guard 21303 | -4/Cetus | Allies destroyed Cetus Guard 21309 | -4/Cetus | Destroyed Cetus Guard 21316 | -4/Cetus | Allies destroyed Cetus Guard 21352 | -4/Cetus | Started Cetus Manufacturing Module 21355 | -4/Cetus | Escorted A7 to Cetus Mainframe 21361 | -4/Cetus | Discovered new exit (range 15) 21377 | -4/Cetus | Manufactured an Enhanced Grunt 21378 | -4/Cetus | Spotted Cetus Guard 21378 | -4/Cetus | Spotted Cetus Guard 21382 | -4/Cetus | Spotted Cetus Guard 21384 | -4/Cetus | Destroyed Cetus Guard 21388 | -4/Cetus | Spotted Cetus Guard 21390 | -4/Cetus | Allies destroyed Cetus Guard 21395 | -4/Cetus | Allies destroyed Cetus Guard 21398 | -4/Cetus | Destroyed Cetus Guard 21400 | -4/Cetus | Discovered new exit (range 16) 21402 | -4/Cetus | Manufactured an Enhanced Grunt 21403 | -4/Cetus | Met Revision 17 21427 | -4/Cetus | Manufactured an Enhanced Grunt 21452 | -4/Cetus | Manufactured an Enhanced Grunt 21477 | -4/Cetus | Manufactured an Enhanced Grunt 21522 | -4/Cetus | Destroyed A7 21524 | -4/Cetus | Extracted ID and sensor layout for unrecognized location from A7's data core 21526 | -4/Cetus | Found Corrupted Prototype Protection 21526 | -4/Cetus | Identified Med. Regenerative Plating 21546 | -4/Cetus | Cetus Manufacturing Module disabled 21574 | -4/Cetus | Entered Archives 21574 | -4/Archives | Accompanied by 9 allies 21606 | -4/Archives | Discovered new exit (range 16) 21641 | -4/Archives | Discovered new exit (range 15) 21738 | -4/Archives | Discovered new exit (range 16) 22050 | -4/Archives | Entered Hub_04(d) 22050 | -4/Hub_04(d) | Accompanied by 6 allies 22103 | -4/Hub_04(d) | Identified exit to Research 22311 | -4/Hub_04(d) | Joined by Warlord Dakka squad 22323 | -4/Hub_04(d) | Garrison activated, responded to threat 22348 | -4/Hub_04(d) | Network Hub disabled 22380 | -4/Hub_04(d) | Network Hub disabled 22401 | -4/Hub_04(d) | Spotted Lightning 22415 | -4/Hub_04(d) | Destroyed Lightning 22420 | -4/Hub_04(d) | Found Prototype Device 22421 | -4/Hub_04(d) | Identified Exp. EM Disruption Field 22426 | -4/Hub_04(d) | Found Prototype Energy Cannon 22426 | -4/Hub_04(d) | Identified EMDS 22432 | -4/Hub_04(d) | Found Prototype Processor 22432 | -4/Hub_04(d) | Identified Exp. Targeting Computer 22438 | -4/Hub_04(d) | Entered Research 22438 | -3/Research | Evolved 2 slots: Power x1, Propulsion x1 22439 | -3/Research | Identified exit to Armory 22511 | -3/Research | Repaired Cmb. Linear Gravjet? 22544 | -3/Research | Repaired Cmb. Linear Gravjet 22594 | -3/Research | Discovered new exit (range 10) 22786 | -3/Research | Fabricated Adv. Terrain Scan Processor? 23082 | -3/Research | Identified exit to Quarantine 23107 | -3/Research | Build established: Wizard-Scout 23221 | -3/Research | Entered Armory 23221 | -3/Armory | Accompanied by 2 allies 23223 | -3/Armory | Identified Transdimensional Reconstructor 23223 | -3/Armory | Warped through subspace to slip node 23223 | -3/Armory | Discovered new exit (range 1) 23409 | -3/Armory | Discovered new exit (range 13) 23491 | -3/Armory | Found Prototype Launcher 23491 | -3/Armory | Identified Hellfire Missile Launcher 23523 | -3/Armory | Fabricated Exp. Terrain Scan Processor (x1) 23537 | -3/Armory | Central database locked down 23561 | -3/Armory | Entered Lab 23561 | -3/Lab | Discovered new exit (range 9) 23566 | -3/Lab | Hidden lab's door opened automatically 23566 | -3/Lab | Sensor layout match revealed 23567 | -3/Lab | Gained access to the hidden lab's interior 23663 | -3/Lab | Found Transdimensional Reconstructor 23680 | -3/Lab | Found Alien Artifact 23680 | -3/Lab | Identified Integrated Mediator 23680 | -3/Lab | Installed Integrated Mediator, increased core attachment efficiency. 23684 | -3/Lab | Found Alien Artifact 23684 | -3/Lab | Identified Core Expander 23684 | -3/Lab | Installed Core Expander, added new Power slot 23719 | -3/Lab | Found Prototype Hackware 23720 | -3/Lab | Found Prototype Protection 23722 | -3/Lab | Found Prototype Energy Cannon 23724 | -3/Lab | Found Prototype Energy Cannon 23747 | -3/Lab | Identified Warp Cannon (x2) 23749 | -3/Lab | Identified Exp. Powered Armor 23799 | -3/Lab | Entered Research 23799 | -2/Research | Evolved 2 slots: Propulsion x2 23804 | -2/Research | Discovered new exit (range 13) 23818 | -2/Research | Identified exit to DSF 23895 | -2/Research | Identified exit to Testing 23895 | -2/Research | Identified Deep Network Scanner 23933 | -2/Research | Identified exit to Access 24011 | -2/Research | Central database locked down 24117 | -2/Research | Found Adv. Force Booster 24212 | -2/Research | Found Adv. Force Booster 24225 | -2/Research | Spotted B-90 Cyclops 24311 | -2/Research | Repaired Cld. Fission Core 24339 | -2/Research | Repaired Cmb. Linear Gravjet? 24546 | -2/Research | Found Nanosword 24651 | -2/Research | Repaired Nanosword 24651 | -2/Research | Fabricated Femtoactuators? 24708 | -2/Research | Fabricated Exp. Melee Analysis Suite? 24865 | -2/Research | Repaired Cld. Plasma Cannon 24964 | -2/Research | Fabricated Zero-point Reactor (x1) 24979 | -2/Research | Entered Access 24979 | -1/Access | Evolved 2 slots: Utility x2 25019 | -1/Access | Identified exit to Command 25287 | -1/Access | Discovered new exit (range 30) 25669 | -1/Access | Found Zero-point Reactor 25672 | -1/Access | Found Zero-point Reactor 25891 | -1/Access | Found Zero-point Reactor 25893 | -1/Access | Found Zero-point Reactor 25901 | -1/Access | Repaired Adv. Force Field 25927 | -1/Access | Repaired Cmb. Linear Gravjet? 25956 | -1/Access | Repaired Cmb. Linear Gravjet? 26033 | -1/Access | Fabricated Exp. Melee Analysis Suite (x1) 26082 | -1/Access | Fabricated Exp. Melee Analysis Suite (x1) 26243 | -1/Access | Fabricated Exp. Utility Shielding? 26251 | -1/Access | Repaired Cmb. Linear Gravjet 26276 | -1/Access | Repaired Cmb. Linear Gravjet 26338 | -1/Access | Fabricated Exp. Utility Shielding (x1) 26643 | -1/Access | Entered Command 26733 | -1/Command | Spotted Combat Programmer 26734 | -1/Command | Spotted Combat Programmer 26742 | -1/Command | Destroyed Combat Programmer 26752 | -1/Command | Destroyed Combat Programmer 26919 | -1/Command | Build established: Machinist-Sprinter 26958 | -1/Command | Destroyed M Guard 26984 | -1/Command | Destroyed M Guard 26984 | -1/Command | All MAIN.C guards destroyed 27005 | -1/Command | Found Corrupted Zero-point Reactor 27017 | -1/Command | Found Corrupted Zero-point Reactor 27032 | -1/Command | Met MAIN.C 27039 | -1/Command | 0b10 Conduit disabled 27055 | -1/Command | Destroyed MAIN.C Shell 27056 | -1/Command | MAIN.C activated Command garrisons 27097 | -1/Command | Destroyed MAIN.C 27098 | -1/Command | Discovered new exit (range 35) 27098 | -1/Command | Discovered new exit (range 96) 27098 | -1/Command | Extracted map data and part IDs from MAIN.C's data core 27100 | -1/Command | Found Exp. Powered Armor 27110 | -1/Command | Found Singularity Reactor 27124 | -1/Command | Lost 6 parts (1n4u1w) 27168 | -1/Command | Found Exp. System Purifier 27253 | -1/Command | Found Exp. Force Field 27255 | -1/Command | Found Zero-point Reactor 27256 | -1/Command | Found Zero-point Reactor 28631 | -1/Command | Found Exp. Core Analyzer 29071 | -1/Command | Found Corrupted Hvy. Regenerative Plating 29420 | -1/Command | Build established: Machinist-Mutant 30948 | -1/Command | Found Exp. Melee Analysis Suite 31167 | -1/Command | Warped through subspace to slip node 31167 | -1/Command | Discovered new exit (range 4) 31174 | -1/Command | Entered Access_0 31175 | -1/Access_0 | Met Architect 31183 | -1/Access_0 | Destroyed A8 31197 | -1/Access_0 | Architect warped through subspace 31261 | -1/Access_0 | A6 warped into view 31269 | -1/Access_0 | Destroyed A6 31307 | -1/Access_0 | Architect warped through subspace 31316 | -1/Access_0 | Subspace Access Node disabled 31326 | -1/Access_0 | Found Integrated Reactor 31326 | -1/Access_0 | Installed Integrated Reactor, increased core energy generation (+10) 31339 | -1/Access_0 | Architect warped through subspace 31359 | -1/Access_0 | Found Exp. Powered Armor 31399 | -1/Access_0 | Architect warped through subspace 31403 | -1/Access_0 | Subspace Access Node disabled 31409 | -1/Access_0 | Destroyed 7 combat bots 31423 | -1/Access_0 | Found Exp. Powered Armor 31444 | -1/Access_0 | Found Exp. Powered Armor 31453 | -1/Access_0 | Architect warped through subspace 31454 | -1/Access_0 | Found Exp. Powered Armor 31460 | -1/Access_0 | Build established: Machinist-Sprinter 31461 | -1/Access_0 | A5 warped into view 31467 | -1/Access_0 | Destroyed A5 31515 | -1/Access_0 | Architect warped through subspace 31543 | -1/Access_0 | Architect warped through subspace 31554 | -1/Access_0 | Found Vibroblade 31555 | -1/Access_0 | Found Femtoactuators 31573 | -1/Access_0 | Architect warped through subspace 31594 | -1/Access_0 | Architect warped through subspace 31599 | -1/Access_0 | Subspace Access Node disabled 31608 | -1/Access_0 | Architect warped through subspace 31656 | -1/Access_0 | Architect warped through subspace 31697 | -1/Access_0 | Architect warped through subspace 31725 | -1/Access_0 | Found Exp. Phase Shifter 31782 | -1/Access_0 | Subspace Access Node disabled 31814 | -1/Access_0 | Destroyed Architect 31815 | -1/Access_0 | Architect triggered a singularity event 31815 | -1/Access_0 | Extracted unknown sensor trigger ID from Architect's data core 31816 | -1/Access_0 | Found Hpw. Transdimensional Reconstructor 31816 | -1/Access_0 | Warped through subspace to slip node 31816 | -1/Access_0 | Discovered new exit (range 8) 31820 | *** | Escaped singularity! Last Messages --------------- 31809_ Penetrated by Quantum Shear. 31810_ Acquired Exp. Energy Well. 31812_ Quantum Shear penetrates Wall. 31812_ Penetrated by Quantum Shear. 31812_ Plasma Lance follow-up attack on Architect. 31812_ Architect suffers critical hit (Impale). 31812_ Destroyed Prototype Hackware. 31814_ Architect destroyed. 31815_ Acquired data core, extracted unknown sensor trigger ID. 31816_ Discarded Imp. Armor Integrity Analyzer. 31816_ Acquired Hpw. Transdimensional Reconstructor. 31816_ Warped through subspace, drawn to slip node. 31816_ EXIT=FOUND Map ----- +----------------------------------------------------+ | | | | | | | | | | | | | | | | | | | | | | | | | | | | | | | | | ?????????????????????????????????????????????????? | | ?????????????????????????????????????????????????? | | ?????????????????????????????????????????????????? | | ?????????????????????????????????????????????????? | | ?????????????????????????????????????????????????? | | ?????????????????????????????????????????????????? | | ????????????????????????###??????????????????????? | | ???????????????????????## ##?????????????????????? | | ???????????????????????# #?????????????????????? | | ???????????????????????# @ #?????????????????????? | | ??????????????????????## #?????????????????????? | | ??????????????????????# #?????????????????????? | | ??????????????????????# ##?????????????????????? | | ??????????????????????## #?????????????????????? | | ??????????????????????# #?????????????????????? | | ??????????????????????# ##?????????????????????? | | ??????????????????????# < #?????????????????????? | | ??????????????????????# ##?????????????????????? | | ??????????????????????## #??????????????????????? | | ???????????????????????####??????????????????????? | | ?????????????????????????????????????????????????? | | ?????????????????????????????????????????????????? | | ?????????????????????????????????????????????????? | | ?????????????????????????????????????????????????? | | ?????????????????????????????????????????????????? | | ?????????????????????????????????????????????????? | | ?????????????????????????????????????????????????? | | ?????????????????????????????????????????????????? | | ?????????????????????????????????????????????????? | | ?????????????????????????????????????????????????? | | ?????????????????????????????????????????????????? | | ?????????????????????????????????????????????????? | | ?????????????????????????????????????????????????? | | ?????????????????????????????????????????????????? | +----------------------------------------------------+ Best States ------------- Heat Dissipation 162 Energy Generation 99 Energy Capacity 1120 Matter Stores 300 Matter Capacity 300 Sight Range 18 Robot Scan Range 16 Terrain Scan Range 30 Terrain Scan Density 1010 Jamming Range 16 Cloak Strength 4 Base Temperature (-) 200 Armor Coverage 800 Resistance: EM 75 Propulsion Shielding 90 Utility Shielding 90 Weapon Shielding 90 Melee Speed Boost 50 Phase Shifting 20 Evasion (%) 85 Targeting Accuracy 12 Melee Accuracy 48 Core Analysis 8 Armor Integrity Analysis 40 Recoil Reduction 4 Force Boost 40 Offensive Hacking 84 Defensive Hacking 22 Authchip Count 3 Item Schematics ----------------- Combat Drone Bay | -7/Data Miner | Free Lgt. Regenerative Plating | -7/Data Miner | Free Cld. Aerolev Unit | -7/Data Miner | Free Exp. Power Shielding | -7/Data Miner | Free Com. Ion Cannon | -7/Data Miner | Free Antigrav System | -7/Data Miner | Free Adv. Cooling System | -7/Data Miner | Free Disruptor Cannon | -7/Data Miner | Free Imp. Gravmag System | -7/Data Miner | Free Imp. Recalibrator | -7/Data Miner | Free HERF Cannon | -6/Factory | Hacked Adv. Terrain Scanner | -6/Factory | Hacked Cld. Cesium-ion Thruster | -6/Factory | Scanalyzed Hvy. Mass Driver | -6/Zion | Archive Adv. System Restoration Module | -6/Zion | Archive Imp. Reaction Control System | -6/Zion | Archive Thermic Laser | -6/Zion | Archive Imp. Component Analysis Suite | -6/Zion | Archive Adv. Reaction Control System | -6/Zion | Archive Nuclear Pulse Thruster | -6/Zion | Archive Imp. Dynamic Insulation System | -6/Zion | Archive Phase Shifter | -6/Zion | Archive Proton Cannon | -6/Zion | Archive Arm. Medium Treads | -6/Zion | Archive Hyp. Gauss Rifle | -6/Zion | Archive Railgun | -6/Zion | Archive Riot Gun | -6/Zion | Free Hvy. Riot Gun | -6/Zion | Free Flamer | -6/Zion | Free Enh. Flamer | -6/Zion | Free Exp. Biometal Heavy Treads | -5/Factory | Downloaded Biomechanical Wings | -5/Factory | Hacked Adv. Hacking Suite | -5/Factory | Scanalyzed Hyp. Railgun | -5/Factory | Scanalyzed Assault Drone Bay | -5/Zhirov | Free Exp. Heat Sink | -5/Zhirov | Free Exp. Optical Array | -5/Zhirov | Free Imp. Arc Thrower | -5/Zhirov | Free Exp. Terrain Scanner | -4/Factory | Hacked Cmb. Linear Gravjet | -4/Factory | Hacked Cld. Q-thruster | -4/Factory | Hacked Exp. Utility Shielding | -4/Factory | Hacked Hcp. Storage Unit | -4/Factory | Hacked Adv. Force Field | -4/Extension | Hacked Adv. Terrain Scan Processor | -4/Extension | Hacked Imp. Powered Armor | -4/Extension | Hacked Powered Armor | -4/Extension | Hacked Cld. Linear Gravjet | -4/Hub_04(d) | Hacked Com. HERF Cannon | -3/Research | Hacked Exp. Terrain Scan Processor | -3/Armory | Hacked Exp. Melee Analysis Suite | -2/Research | Hacked Femtoactuators | -2/Research | Hacked Zero-point Reactor | -2/Research | Hacked Nanosword | -2/Research | Hacked Adv. Actuator Array | -2/Research | Hacked Robot Schematics ------------------ H-66 Slayer | -7/Data Miner | Free A-15 Conveyor | -7/Data Miner | Free L-41 Fighter | -7/Data Miner | Free P-70 Sage | -7/Data Miner | Free O-24 Administrator | -6/Factory | Hacked A-02 Transporter | -6/Zion | Archive S-27 Virus | -6/Zion | Archive M-22 Extractor | -6/Zion | Archive Fabricated ------------ Combat Drone Bay | x1 | -6/Factory Cld. Cesium-ion Thruster | x1 | -6/Factory Hyp. Railgun | x2 | -6/Factory | Preloaded Cld. Cesium-ion Thruster | x1 | -6/Factory Biomechanical Wings | x1 | -5/Factory | Authchip Biomechanical Wings | x1 | -5/Factory | Authchip Biomechanical Wings | x1 | -5/Factory P-70 Sage | x2 | -5/Factory | Authchip Adv. Hacking Suite | x1 | -5/Factory | Authchip Adv. Hacking Suite | x1 | -5/Factory | Authchip Adv. Hacking Suite | x1 | -5/Factory | Authchip Cmb. Linear Gravjet | x2 | -4/Factory | Preloaded Cmb. Linear Gravjet | x2 | -4/Factory | Authchip Lrn. Terrain Scanner | x1 | -4/Factory | Preloaded Cmb. Linear Gravjet | x2 | -4/Factory | Authchip Cmb. Linear Gravjet | x2 | -4/Factory | Authchip Exp. Terrain Scanner | x1 | -4/Factory Adv. Terrain Scan Processor | x2 | -3/Research Exp. Terrain Scan Processor | x1 | -3/Armory Femtoactuators | x1 | -2/Research | Authchip Exp. Melee Analysis Suite | x1 | -2/Research | Authchip Zero-point Reactor | x1 | -2/Research Exp. Melee Analysis Suite | x1 | -1/Access | Authchip Exp. Melee Analysis Suite | x1 | -1/Access | Authchip Exp. Utility Shielding | x1 | -1/Access | Authchip Exp. Utility Shielding | x1 | -1/Access Alien Tech Used ----------------- Integrated Dissipator Transdimensional Reconstructor Integrated Mediator Core Expander Integrated Reactor High-powered Transdimensional Reconstructor Achievements -------------- None Challenges ------------ None Game ------ Seed ArchitectOmegaRouter Manual? 0 Play Time 13:32:07 Cumulative 624.0 hours Start 2023.02.13 @ 03:21:35 End 2023.02.23 @ 20:10:56 Sessions 9 Manual Loads 0 Difficulty Rogue Special Mode None Game No. 549 Rogue 334 Adventurer 112 Explorer 103 Win Type 6 Total 41 Types 26/0/8/2/0/0/4/1/0 Lore% 87 Gallery% 93 Achievement% 81 Wizard Run 0 Options --------- ASCII 0 Keyboard 0 Movement Vi Keybinds 1 Fullscreen 2 Font 18/TerminusBold Map View 76x50 Tactical HUD 1 Map Filters NONE Filters NONE Steam 0 RUN: 0ca93a6d-7b18-4c1f-af91-798fb79029b8